Workbook

Sheet 名单
A1: 附件:
A2: 陆川县2025年度上半年事业单位公开招聘工作人员拟聘用人员名单（第一批）
A3: 序号 | B3: 姓名 | C3: 性别 | D3: 民族 | E3: 准考证号 | F3: 出生年月 | G3: 户口所在地（或生源地） | H3: 学历 | I3: 学位 | J3: 毕业院校 | K3: 所学专业 | L3: 毕业时间 | M3: 职称或职业资格 | N3: 其他条件 | O3: 拟聘用单位 | P3: 拟聘用岗位 | Q3: 招聘人数 | R3: 聘用岗位类别及等级 | S3: 用人方式 | T3: 笔试总成绩 | U3: 面试成绩 | V3: 总成绩 | W3: 总成绩排名 | X3: 备注
A4: =SUBTOTAL(3,$B$3:B3) -> 1 | B4: 罗观霞 | C4: 女 | D4: 汉族 | E4: 2145251402430 | F4: 2003.09 | G4: 广西陆川 | H4: 本科 | I4: 学士 | J4: 江苏大学 | K4: 汉语国际教育 | L4: 2025.06 | N4: 应届高校毕业生 | O4: 陆川县纪检监察电教信息网络舆情中心 | P4: 专业技术人员一 | Q4: 1 | R4: 专技十二级 | S4: 事业编制 | T4: 206.0 | U4: 78.80 | V4: =T4/3*0.5+U4*0.5 -> 73.73 | W4: 1
A5: =SUBTOTAL(3,$B$3:B4) -> 2 | B5: 单钰杰 | C5: 男 | D5: 汉族 | E5: 2145251407112 | F5: 2002.01 | G5: 江西南昌 | H5: 本科 | I5: 学士 | J5: 南昌理工学院 | K5: 产品设计 | L5: 2024.06 | N5: 2024年6月毕业，未落实过编制内工作的高校毕业生 | O5: 陆川县纪检监察电教信息网络舆情中心 | P5: 专业技术人员二 | Q5: 1 | R5: 专技十二级 | S5: 事业编制 | T5: 206.0 | U5: 84.10 | V5: 76.38 | W5: 1
A6: =SUBTOTAL(3,$B$3:B5) -> 3 | B6: 李潮钦 | C6: 男 | D6: 汉族 | E6: 2145251404930 | F6: 1989.09 | G6: 广东化州 | H6: 本科 | I6: 学士 | J6: 广东警官学院 | K6: 法学 | L6: 2023.06 | O6: 陆川县绩效评估中心 | P6: 专业技术岗一 | Q6: 1 | R6: 专技十二级 | S6: 事业编制 | T6: 198.5 | U6: 75.90 | V6: 71.03 | W6: 1
A7: =SUBTOTAL(3,$B$3:B6) -> 4 | B7: 王竞萱 | C7: 女 | D7: 汉族 | E7: 2145251404124 | F7: 1992.04 | G7: 广东中山 | H7: 本科 | I7: 学士 | J7: 广西师范学院 | K7: 国际经济与贸易（东南亚贸易） | L7: 2015.06 | O7: 陆川县绩效评估中心 | P7: 专业技术岗二 | Q7: 2 | R7: 专技十二级 | S7: 事业编制 | T7: 195.0 | U7: 85.40 | V7: 75.20 | W7: 1
A8: =SUBTOTAL(3,$B$3:B7) -> 5 | B8: 莫婵 | C8: 女 | D8: 汉族 | E8: 2145251401323 | F8: 1997.06 | G8: 广西陆川 | H8: 本科 | I8: 学士 | J8: 广西财经学院 | K8: 金融学 | L8: 2021.07 | O8: 陆川县绩效评估中心 | P8: 专业技术岗二 | Q8: 2 | R8: 专技十二级 | S8: 事业编制 | T8: 200.0 | U8: 81.20 | V8: 73.93 | W8: 2
A9: =SUBTOTAL(3,$B$3:B8) -> 6 | B9: 刘思 | C9: 男 | D9: 汉族 | E9: 2145251401117 | F9: 1993.10 | G9: 广西陆川 | H9: 本科 | I9: 学士 | J9: 杭州电子科技大学 | K9: 印刷工程 | L9: 2016.06 | O9: 陆川县绩效评估中心 | P9: 专业技术岗三 | Q9: 1 | R9: 专技十二级 | S9: 事业编制 | T9: 187.5 | U9: 76.60 | V9: 69.55 | W9: 2 | X9: 递补
A10: =SUBTOTAL(3,$B$3:B9) -> 7 | B10: 钟雪玲 | C10: 女 | D10: 汉族 | E10: 2145251407218 | F10: 2003.06 | G10: 广西陆川 | H10: 本科 | I10: 学士 | J10: 玉林师范学院 | K10: 汉语国际教育 | L10: 2025.06 | N10: 应届高校毕业生 | O10: 陆川县领导干部考试与测评服务中心 | P10: 专业技术岗 | Q10: 1 | R10: 专业技术 | S10: 事业编制 | T10: 166.0 | U10: 83.10 | V10: 69.22 | W10: 1
A11: =SUBTOTAL(3,$B$3:B10) -> 8 | B11: 刘小冰 | C11: 女 | D11: 汉族 | E11: 2145251402607 | F11: 2002.03 | G11: 广西北流 | H11: 本科 | I11: 学士 | J11: 南宁师范大学 | K11: 思想政治教育 | L11: 2025.06 | N11: 政治面貌为中共党员 | O11: 陆川县党群服务中心 | P11: 专业技术岗一 | Q11: 1 | R11: 专业技术 | S11: 事业编制 | T11: 172.5 | U11: 83.40 | V11: 70.45 | W11: 1
A12: =SUBTOTAL(3,$B$3:B11) -> 9 | B12: 钟立 | C12: 女 | D12: 汉族 | E12: 2145251406224 | F12: 2002.10 | G12: 广西北流 | H12: 本科 | I12: 学士 | J12: 广西民族大学相思湖学院 | K12: 法学 | L12: 2025.06 | N12: 政治面貌为中共党员 | O12: 陆川县党群服务中心 | P12: 专业技术岗二 | Q12: 1 | R12: 专业技术 | S12: 事业编制 | T12: 180.5 | U12: 86.70 | V12: 73.43 | W12: 1
A13: =SUBTOTAL(3,$B$3:B12) -> 10 | B13: 李正朋 | C13: 男 | D13: 壮族 | E13: 2145251408125 | F13: 1996.07 | G13: 云南广南 | H13: 本科 | I13: 学士 | J13: 云南民族大学 | K13: 自动化 | L13: 2020.07 | N13: 政治面貌为中共党员 | O13: 陆川县党群服务中心 | P13: 专业技术岗三 | Q13: 2 | R13: 专业技术 | S13: 事业编制 | T13: 198.0 | U13: 80.20 | V13: 73.10 | W13: 1
A14: =SUBTOTAL(3,$B$3:B13) -> 11 | B14: 胡婷婷 | C14: 女 | D14: 汉族 | E14: 2145251406922 | F14: 1993.08 | G14: 广西博白 | H14: 本科 | I14: 学士 | J14: 桂林理工大学 | K14: 自动化 | L14: 2015.06 | N14: 政治面貌为中共党员 | O14: 陆川县党群服务中心 | P14: 专业技术岗三 | Q14: 2 | R14: 专业技术 | S14: 事业编制 | T14: 191.0 | U14: 79.70 | V14: 71.68 | W14: 2
A15: =SUBTOTAL(3,$B$3:B14) -> 12 | B15: 刘晓萍 | C15: 女 | D15: 汉族 | E15: 2145251401022 | F15: 1992.08 | G15: 广西博白 | H15: 本科 | I15: 学士 | J15: 玉林师范学院 | K15: 应用心理学 | L15: 2021.06 | N15: 政治面貌为中共党员 | O15: 陆川县党群服务中心 | P15: 专业技术岗四 | Q15: 1 | R15: 专业技术 | S15: 事业编制 | T15: 169.5 | U15: 82.00 | V15: 69.25 | W15: 1
A16: =SUBTOTAL(3,$B$3:B15) -> 13 | B16: 陈伟煜 | C16: 男 | D16: 汉族 | E16: 2145251407922 | F16: 1999.11 | G16: 广西陆川 | H16: 本科 | I16: 学士 | J16: 广西财经学院 | K16: 会计学 | L16: 2023.07 | N16: 政治面貌为中共党员 | O16: 陆川县党群服务中心 | P16: 专业技术岗五 | Q16: 1 | R16: 专业技术 | S16: 事业编制 | T16: 193.0 | U16: 84.30 | V16: 74.32 | W16: 1
A17: =SUBTOTAL(3,$B$3:B16) -> 14 | B17: 黎金娜 | C17: 女 | D17: 汉族 | E17: 2145251408105 | F17: 2002.06 | G17: 广西陆川 | H17: 本科 | I17: 学士 | J17: 广西师范大学 | K17: 法学 | L17: 2025.06 | N17: 政治面貌为中共党员 | O17: 陆川县党群服务中心 | P17: 专业技术岗六 | Q17: 1 | R17: 专业技术 | S17: 事业编制 | T17: 184.0 | U17: 83.50 | V17: 72.42 | W17: 1
A18: =SUBTOTAL(3,$B$3:B17) -> 15 | B18: 吕巧 | C18: 女 | D18: 汉族 | E18: 2145251406303 | F18: 1995.05 | G18: 广西陆川 | H18: 本科 | I18: 学士 | J18: 贺州学院 | K18: 汉语言文学（现代文秘方向） | L18: 2017.06 | O18: 陆川县社会工作服务中心 | P18: 专业技术岗一 | Q18: 1 | R18: 专业技术 | S18: 事业编制 | T18: 197.0 | U18: 82.50 | V18: 74.08 | W18: 1
A19: =SUBTOTAL(3,$B$3:B18) -> 16 | B19: 覃钰婷 | C19: 女 | D19: 汉族 | E19: 2145251400111 | F19: 2001.11 | G19: 广西陆川 | H19: 本科 | I19: 学士 | J19: 南宁师范大学师园学院 | K19: 财务管理 | L19: 2024.06 | O19: 陆川县社会工作服务中心 | P19: 专业技术岗二 | Q19: 1 | R19: 专业技术 | S19: 事业编制 | T19: 173.0 | U19: 80.52 | V19: 69.09 | W19: 1
A20: =SUBTOTAL(3,$B$3:B19) -> 17 | B20: 万永梅 | C20: 女 | D20: 汉族 | E20: 2145251404713 | F20: 1998.07 | G20: 广西陆川 | H20: 本科 | I20: 学士 | J20: 广西民族大学 | K20: 社会工作 | L20: 2020.06 | O20: 陆川县社会工作服务中心 | P20: 专业技术岗四 | Q20: 1 | R20: 专业技术 | S20: 事业编制 | T20: 163.5 | U20: 84.92 | V20: =T20/3*0.5+U20*0.5 -> 69.71 | W20: 1
A21: =SUBTOTAL(3,$B$3:B20) -> 18 | B21: 黎妹华 | C21: 女 | D21: 汉族 | E21: 2145251404212 | F21: 2003.05 | G21: 广西北流 | H21: 本科 | I21: 学士 | J21: 广西师范大学 | K21: 网络与新媒体 | L21: 2024.06 | O21: 陆川县社会工作服务中心 | P21: 专业技术岗五 | Q21: 1 | R21: 专业技术 | S21: 事业编制 | T21: 189.5 | U21: 87.90 | V21: 75.53 | W21: 1
A22: =SUBTOTAL(3,$B$3:B21) -> 19 | B22: 谢斯俊 | C22: 男 | D22: 汉族 | E22: 2145251401111 | F22: 1992.02 | G22: 广西玉林 | H22: 本科 | I22: 无学位 | J22: 桂林电子科技大学 | K22: 通信工程 | L22: 2019.06 | O22: 陆川县综治中心 | P22: 专业技术人员 | Q22: 1 | R22: 专业技术 | S22: 事业编制 | T22: 187.0 | U22: 88.36 | V22: 75.35 | W22: 1
A23: =SUBTOTAL(3,$B$3:B22) -> 20 | B23: 莫婷婷 | C23: 女 | D23: 汉族 | E23: 2145251404804 | F23: 2003.04 | G23: 广西博白 | H23: 本科 | I23: 学士 | J23: 梧州学院 | K23: 电子商务 | L23: 2025.06 | N23: 政治面貌为中共党员 | O23: 陆川县直属机关党员服务中心 | P23: 党员信息化 | Q23: 1 | R23: 专业技术 | S23: 事业编制 | T23: 196.0 | U23: 80.40 | V23: 72.87 | W23: 1
A24: =SUBTOTAL(3,$B$3:B23) -> 21 | B24: 黎雨珊 | C24: 女 | D24: 汉族 | E24: 1145250901812 | F24: 2001.08 | G24: 广西博白 | H24: 本科 | I24: 学士 | J24: 广西师范大学漓江学院 | K24: 新闻学 | L24: 2022.06 | O24: 陆川县巡察工作信息中心 | P24: 管理人员 | Q24: 1 | R24: 管理十级 | S24: 事业编制 | T24: 192.5 | U24: 83.10 | V24: 73.63 | W24: 1
A25: =SUBTOTAL(3,$B$3:B24) -> 22 | B25: 晏瑞 | C25: 女 | D25: 汉族 | E25: 2145251604408 | F25: 1996.06 | G25: 云南镇雄 | H25: 本科 | I25: 学士 | J25: 云南大学滇池学院 | K25: 新闻学 | L25: 2018.06 | O25: 陆川县巡察工作信息中心 | P25: 专业技术人员 | Q25: 1 | R25: 专技十二级 | S25: 事业编制 | T25: 196.0 | U25: 86.74 | V25: 76.04 | W25: 1
A26: =SUBTOTAL(3,$B$3:B25) -> 23 | B26: 万纹靖 | C26: 男 | D26: 汉族 | E26: 3145252101628 | F26: 2001.02 | G26: 广西陆川 | H26: 本科 | I26: 学士 | J26: 梧州学院 | K26: 数据科学与大数据技术 | L26: 2023.06 | O26: 陆川县电子政务内网服务中心 | P26: 专技人员一 | Q26: 3 | R26: 专技十二级 | S26: 事业编制 | T26: 189.0 | U26: 85.74 | V26: 74.37 | W26: 1
A27: =SUBTOTAL(3,$B$3:B26) -> 24 | B27: 周星旭 | C27: 男 | D27: 汉族 | E27: 3145252101801 | F27: 1999.12 | G27: 广西陆川 | H27: 本科 | I27: 学士 | J27: 广西师范大学 | K27: 计算机科学与技术 | L27: 2021.06 | O27: 陆川县电子政务内网服务中心 | P27: 专技人员一 | Q27: 3 | R27: 专技十二级 | S27: 事业编制 | T27: 188.0 | U27: 85.96 | V27: 74.31 | W27: 2
A28: =SUBTOTAL(3,$B$3:B27) -> 25 | B28: 丘益明 | C28: 男 | D28: 汉族 | E28: 3145252109420 | F28: 2002.04 | G28: 广西陆川 | H28: 本科 | I28: 学士 | J28: 广西民族大学 | K28: 智能科学与技术 | L28: 2024.06 | O28: 陆川县电子政务内网服务中心 | P28: 专技人员一 | Q28: 3 | R28: 专技十二级 | S28: 事业编制 | T28: 191.5 | U28: 82.26 | V28: 73.05 | W28: 3
A29: =SUBTOTAL(3,$B$3:B28) -> 26 | B29: 覃惠 | C29: 女 | D29: 汉族 | E29: 2145251604801 | F29: 2000.10 | G29: 广西陆川 | H29: 本科 | I29: 学士 | J29: 湖北师范大学文理学院 | K29: 汉语言文学 | L29: 2024.06 | O29: 陆川县电子政务内网服务中心 | P29: 专技人员二 | Q29: 2 | R29: 专技十二级 | S29: 事业编制 | T29: 196.0 | U29: 83.52 | V29: 74.43 | W29: 1
A30: =SUBTOTAL(3,$B$3:B29) -> 27 | B30: 戚栩 | C30: 女 | D30: 汉族 | E30: 2145251603427 | F30: 2002.06 | G30: 广西桂平 | H30: 本科 | I30: 学士 | J30: 梧州学院 | K30: 汉语言文学 | L30: 2025.06 | O30: 陆川县电子政务内网服务中心 | P30: 专技人员二 | Q30: 2 | R30: 专技十二级 | S30: 事业编制 | T30: 188.0 | U30: 73.26 | V30: 67.96 | W30: 2
A31: =SUBTOTAL(3,$B$3:B30) -> 28 | B31: 黄海嘉 | C31: 女 | D31: 汉族 | E31: 2145251601519 | F31: 2000.10 | G31: 广西博白 | H31: 本科 | I31: 学士 | J31: 广西财经学院 | K31: 新闻学 | L31: 2022.07 | O31: 陆川县融媒体中心 | P31: 全媒体记者 | Q31: 2 | R31: 专技十二级 | S31: 事业编制 | T31: 182.0 | U31: 85.90 | V31: 73.28 | W31: 1
A32: =SUBTOTAL(3,$B$3:B31) -> 29 | B32: 周肖扬 | C32: 女 | D32: 汉族 | E32: 2145251600703 | F32: 1998.09 | G32: 广西博白 | H32: 本科 | I32: 学士 | J32: 广西艺术学院 | K32: 广告学 | L32: 2021.06 | O32: 陆川县融媒体中心 | P32: 全媒体记者 | Q32: 2 | R32: 专技十二级 | S32: 事业编制 | T32: 185.5 | U32: 84.50 | V32: 73.17 | W32: 2
A33: =SUBTOTAL(3,$B$3:B32) -> 30 | B33: 黄健 | C33: 男 | D33: 汉族 | E33: 2145251603214 | F33: 2002.05 | G33: 广西平南 | H33: 本科 | I33: 学士 | J33: 南宁师范大学 | K33: 新闻学 | L33: 2025.06 | N33: 普通话等级：一级乙等 | O33: 陆川县融媒体中心 | P33: 全媒体播音主持人员 | Q33: 2 | R33: 专技十二级 | S33: 事业编制 | T33: 152.5 | U33: 88.08 | V33: 69.46 | W33: 1
A34: =SUBTOTAL(3,$B$3:B33) -> 31 | B34: 谭燕宁 | C34: 女 | D34: 汉族 | E34: 2145251604813 | F34: 1991.12 | G34: 广西覃塘 | H34: 本科 | I34: 学士 | J34: 玉林师范学院 | K34: 广播电视新闻学 | L34: 2015.06 | N34: 普通话等级：一级乙等 | O34: 陆川县融媒体中心 | P34: 全媒体播音主持人员 | Q34: 2 | R34: 专技十二级 | S34: 事业编制 | T34: 179.5 | U34: 76.44 | V34: 68.14 | W34: 2
A35: =SUBTOTAL(3,$B$3:B34) -> 32 | B35: 江宏业 | C35: 男 | D35: 汉族 | E35: 3145252108801 | F35: 2001.12 | G35: 广西陆川 | H35: 本科 | I35: 学士 | J35: 广西科技大学 | K35: 软件工程 | L35: 2024.06 | O35: 陆川县政协机关信息中心 | P35: 专业技术岗 | Q35: 1 | R35: 专技十二级 | S35: 事业编制 | T35: 170.5 | U35: 83.96 | V35: 70.40 | W35: 1
A36: =SUBTOTAL(3,$B$3:B35) -> 33 | B36: 李鸿 | C36: 女 | D36: 汉族 | E36: 1145250902307 | F36: 2002.07 | G36: 广西钦州 | H36: 本科 | I36: 学士 | J36: 武汉体育学院 | K36: 新闻学 | L36: 2025.06 | O36: 陆川县人民政府信息综合值班中心 | P36: 管理岗位 | Q36: 2 | R36: 管理九级 | S36: 事业编制 | T36: 195.5 | U36: 83.66 | V36: 74.41 | W36: 1
A37: =SUBTOTAL(3,$B$3:B36) -> 34 | B37: 陈庆阳 | C37: 男 | D37: 汉族 | E37: 1145250901015 | F37: 2002.04 | G37: 广西陆川 | H37: 本科 | I37: 学士 | J37: 南宁师范大学师园学院 | K37: 汉语言文学 | L37: 2025.06 | O37: 陆川县人民政府信息综合值班中心 | P37: 管理岗位 | Q37: 2 | R37: 管理九级 | S37: 事业编制 | T37: 204.5 | U37: 78.98 | V37: 73.57 | W37: 2
A38: =SUBTOTAL(3,$B$3:B37) -> 35 | B38: 黎美红 | C38: 女 | D38: 汉族 | E38: 2145251603302 | F38: 2000.12 | G38: 广西北流 | H38: 本科 | I38: 学士 | J38: 广西警察学院 | K38: 信息安全 | L38: 2024.07 | O38: 陆川县人民政府信息综合值班中心 | P38: 专业技术岗一 | Q38: 1 | R38: 专技十二级 | S38: 事业编制 | T38: 175.5 | U38: 72.66 | V38: 65.58 | W38: 1
A39: =SUBTOTAL(3,$B$3:B38) -> 36 | B39: 凌巧凤 | C39: 女 | D39: 汉族 | E39: 2145251603307 | F39: 2003.07 | G39: 广西贵港 | H39: 本科 | I39: 学士 | J39: 郑州航空工业管理学院 | K39: 图书馆学 | L39: 2025.06 | O39: 陆川县人民政府信息综合值班中心 | P39: 专业技术岗二 | Q39: 1 | R39: 专技十二级 | S39: 事业编制 | T39: 192.5 | U39: 76.06 | V39: 70.11 | W39: 1
A40: =SUBTOTAL(3,$B$3:B39) -> 37 | B40: 姚显春 | C40: 男 | D40: 汉族 | E40: 3145252103008 | F40: 2003.01 | G40: 广西陆川 | H40: 本科 | I40: 学士 | J40: 广西大学 | K40: 土木工程 | L40: 2024.06 | O40: 陆川县人防指挥信息保障中心 | P40: 专业技术岗位 | Q40: 1 | R40: 专业技术 | S40: 事业编制 | T40: 189.0 | U40: 84.42 | V40: 73.71 | W40: 1
A41: =SUBTOTAL(3,$B$3:B40) -> 38 | B41: 周丽敏 | C41: 女 | D41: 汉族 | E41: 2145251600102 | F41: 2001.11 | G41: 广西陆川 | H41: 本科 | I41: 学士 | J41: 天津外国语大学 | K41: 经济学 | L41: 2024.06 | O41: 陆川县会计和财政事务服务中心 | P41: 专业技术岗位 | Q41: 1 | R41: 专技十二级 | S41: 事业编制 | T41: 212.0 | U41: 78.10 | V41: 74.38 | W41: 1
A42: =SUBTOTAL(3,$B$3:B41) -> 39 | B42: 刘胤良 | C42: 男 | D42: 汉族 | E42: 1145250902418 | F42: 1998.09 | G42: 广西陆川 | H42: 本科 | I42: 学士 | J42: 桂林电子科技大学信息科技学院 | K42: 财务管理 | L42: 2021.06 | O42: 陆川县会计和财政事务服务中心 | P42: 管理岗位 | Q42: 1 | R42: 管理九级 | S42: 事业编制 | T42: 169.0 | U42: 80.30 | V42: 68.32 | W42: 1
A43: =SUBTOTAL(3,$B$3:B42) -> 40 | B43: 罗舒允 | C43: 女 | D43: 汉族 | E43: 2145251603409 | F43: 2003.08 | G43: 广西陆川 | H43: 本科 | I43: 学士 | J43: 广西师范大学 | K43: 秘书学 | L43: 2025.06 | O43: 陆川县财政信息网络中心 | P43: 专业技术岗位 | Q43: 2 | R43: 专技十二级 | S43: 事业编制 | T43: 205.0 | U43: 83.50 | V43: 75.92 | W43: 1
A44: =SUBTOTAL(3,$B$3:B43) -> 41 | B44: 陈家意 | C44: 女 | D44: 汉族 | E44: 2145251601317 | F44: 2001.11 | G44: 广西陆川 | H44: 本科 | I44: 学士 | J44: 广西师范大学 | K44: 通信工程 | L44: 2023.06 | O44: 陆川县财政信息网络中心 | P44: 专业技术岗位 | Q44: 2 | R44: 专技十二级 | S44: 事业编制 | T44: 201.0 | U44: 84.60 | V44: 75.80 | W44: 2
A45: =SUBTOTAL(3,$B$3:B44) -> 42 | B45: 张英寿 | C45: 男 | D45: 汉族 | E45: 1145250900510 | F45: 1998.07 | G45: 广西陆川 | H45: 本科 | I45: 学士 | J45: 桂林电子科技大学 | K45: 电子信息科学与技术 | L45: 2021.06 | O45: 陆川县财政信息网络中心 | P45: 管理岗位 | Q45: 1 | R45: 管理九级 | S45: 事业编制 | T45: 188.0 | U45: 82.00 | V45: 72.33 | W45: 1
A46: =SUBTOTAL(3,$B$3:B45) -> 43 | B46: 陈剑丹 | C46: 女 | D46: 汉族 | E46: 2145251601220 | F46: 1992.12 | G46: 广西陆川 | H46: 本科 | I46: 学士 | J46: 百色学院 | K46: 财务管理 | L46: 2018.06 | O46: 陆川县路灯发展中心 | P46: 专业技术人员一 | Q46: 1 | R46: 专技十二级 | S46: 事业编制 | T46: 164.5 | U46: 69.30 | V46: 62.07 | W46: 1
A47: =SUBTOTAL(3,$B$3:B46) -> 44 | B47: 李奕良 | C47: 男 | D47: 汉族 | E47: 3145252101603 | F47: 1999.12 | G47: 广西北流 | H47: 本科 | I47: 学士 | J47: 苏州科技大学天平学院 | K47: 电气工程及其自动化 | L47: 2023.04 | O47: 陆川县路灯发展中心 | P47: 专业技术人员二 | Q47: 1 | R47: 专技十二级 | S47: 事业编制 | T47: 166.0 | U47: 79.10 | V47: 67.22 | W47: 1
A48: =SUBTOTAL(3,$B$3:B47) -> 45 | B48: 李如晖 | C48: 女 | D48: 汉族 | E48: 3145252104506 | F48: 1999.12 | G48: 广西陆川 | H48: 本科 | I48: 学士 | J48: 广西财经学院 | K48: 工程造价 | L48: 2021.07 | O48: 陆川县园林发展中心 | P48: 专业技术岗位 | Q48: 2 | R48: 专技十二级 | S48: 事业编制 | T48: 174.0 | U48: 85.32 | V48: 71.66 | W48: 1
A49: =SUBTOTAL(3,$B$3:B48) -> 46 | B49: 邱昱辉 | C49: 男 | D49: 汉族 | E49: 3145252109812 | F49: 1998.10 | G49: 广西陆川 | H49: 本科 | I49: 学士 | J49: 南宁学院 | K49: 土木工程 | L49: 2020.06 | O49: 陆川县园林发展中心 | P49: 专业技术岗位 | Q49: 2 | R49: 专技十二级 | S49: 事业编制 | T49: 170.5 | U49: 78.00 | V49: 67.42 | W49: 2
A50: =SUBTOTAL(3,$B$3:B49) -> 47 | B50: 姚力 | C50: 女 | D50: 汉族 | E50: 1145250904520 | F50: 1997.12 | G50: 广西陆川 | H50: 本科 | I50: 无学位 | J50: 黄冈师范学院 | K50: 数学与应用数学 | L50: 2021.06 | O50: 陆川县园林发展中心 | P50: 管理岗位 | Q50: 1 | R50: 管理九级 | S50: 事业编制 | T50: 200.5 | U50: 80.80 | V50: 73.82 | W50: 1
A51: =SUBTOTAL(3,$B$3:B50) -> 48 | B51: 李威伦 | C51: 男 | D51: 汉族 | E51: 3145252102320 | F51: 1994.07 | G51: 广西陆川 | H51: 本科 | I51: 学士 | J51: 上海工程技术大学 | K51: 工业工程 | L51: 2017.06 | O51: 陆川县科技情报研究所 | P51: 专业技术岗 | Q51: 1 | R51: 专技十二级 | S51: 事业编制 | T51: 190.0 | U51: 83.40 | V51: 73.37 | W51: 1
A52: =SUBTOTAL(3,$B$3:B51) -> 49 | B52: 张震升 | C52: 男 | D52: 汉族 | E52: 1145250902101 | F52: 2002.10 | G52: 广西陆川 | H52: 本科 | I52: 学士 | J52: 梧州学院 | K52: 汉语言文学 | L52: 2023.06 | O52: 陆川县商贸发展服务中心 | P52: 管理岗位 | Q52: 1 | R52: 管理十级 | S52: 事业编制 | T52: 175.0 | U52: 83.80 | V52: 71.07 | W52: 1
A53: =SUBTOTAL(3,$B$3:B52) -> 50 | B53: 李巧芸 | C53: 女 | D53: 汉族 | E53: 2145251604401 | F53: 1996.10 | G53: 广西容县 | H53: 本科 | I53: 学士 | J53: 广西师范大学 | K53: 信息与计算科学 | L53: 2019.06 | O53: 陆川县商贸发展服务中心 | P53: 专业技术岗一 | Q53: 1 | R53: 专技十二级 | S53: 事业编制 | T53: 196.0 | U53: 82.52 | V53: 73.93 | W53: 1
A54: =SUBTOTAL(3,$B$3:B53) -> 51 | B54: 王露婷 | C54: 女 | D54: 汉族 | E54: 2145251602007 | F54: 2000.06 | G54: 广西陆川 | H54: 本科 | I54: 学士 | J54: 广西大学行健文理学院 | K54: 电子商务 | L54: 2023.06 | O54: 陆川县商贸发展服务中心 | P54: 专业技术岗二 | Q54: 1 | R54: 专技十二级 | S54: 事业编制 | T54: 188.0 | U54: 87.12 | V54: 74.89 | W54: 1
A55: =SUBTOTAL(3,$B$3:B54) -> 52 | B55: 陈治霖 | C55: 男 | D55: 汉族 | E55: 3145252107823 | F55: 1998.08 | G55: 广西陆川 | H55: 本科 | I55: 学士 | J55: 广西大学 | K55: 机械设计制造及其自动化 | L55: 2021.07 | O55: 陆川县商贸发展服务中心 | P55: 专业技术岗三 | Q55: 1 | R55: 专技十二级 | S55: 事业编制 | T55: 182.5 | U55: 84.92 | V55: 72.88 | W55: 1
A56: =SUBTOTAL(3,$B$3:B55) -> 53 | B56: 何旭 | C56: 男 | D56: 汉族 | E56: 3145252109914 | F56: 1991.08 | G56: 广西陆川 | H56: 本科 | I56: 无学位 | J56: 北京林业大学 | K56: 林学 | L56: 2017.01 | O56: 陆川县林业技术推广站 | P56: 专业技术岗二 | Q56: 1 | R56: 专技十二级 | S56: 事业编制 | T56: 119.5 | U56: 79.54 | V56: 59.69 | W56: 1
A57: =SUBTOTAL(3,$B$3:B56) -> 54 | B57: 钟桂兰 | C57: 女 | D57: 汉族 | E57: 2145251601226 | F57: 1999.08 | G57: 广西陆川 | H57: 本科 | I57: 学士 | J57: 南宁学院 | K57: 会计学 | L57: 2022.06 | O57: 陆川县林场 | P57: 专业技术岗二 | Q57: 1 | R57: 专技十二级 | S57: 事业编制 | T57: 177.0 | U57: 87.20 | V57: 73.10 | W57: 1
A58: =SUBTOTAL(3,$B$3:B57) -> 55 | B58: 陈湘 | C58: 女 | D58: 汉族 | E58: 5445251503121 | F58: 2000.09 | G58: 广西陆川 | H58: 本科 | I58: 学士 | J58: 桂林医学院 | K58: 护理学 | L58: 2024.01 | M58: 护理学初级师 | O58: 陆川县社会福利院 | P58: 专业技术岗位 | Q58: 1 | R58: 专业技术 | S58: 事业编制 | T58: 135.3 | U58: 79.66 | V58: 62.38 | W58: 1
A59: =SUBTOTAL(3,$B$3:B58) -> 56 | B59: 罗远旺 | C59: 男 | D59: 汉族 | E59: 1145250902219 | F59: 1995.06 | G59: 广西陆川 | H59: 本科 | I59: 学士 | J59: 桂林电子科技大学 | K59: 通信工程 | L59: 2018.07 | O59: 陆川县社会福利院 | P59: 管理岗位 | Q59: 1 | R59: 管理 | S59: 事业编制 | T59: 192.5 | U59: 79.62 | V59: 71.89 | W59: 1
A60: =SUBTOTAL(3,$B$3:B59) -> 57 | B60: 封盛检 | C60: 男 | D60: 汉族 | E60: 3145252109920 | F60: 2001.02 | G60: 广西容县 | H60: 本科 | I60: 学士 | J60: 福州大学 | K60: 给排水科学与工程 | L60: 2024.06 | O60: 陆川县农业综合开发服务中心 | P60: 专业技术岗位 | Q60: 1 | R60: 专业技术 | S60: 事业编制 | T60: 201.5 | U60: 80.20 | V60: 73.68 | W60: 1
A61: =SUBTOTAL(3,$B$3:B60) -> 58 | B61: 李培天 | C61: 男 | D61: 汉族 | E61: 3145252106102 | F61: 2002.03 | G61: 广西陆川 | H61: 本科 | I61: 学士 | J61: 南宁师范大学 | K61: 软件工程 | L61: 2025.06 | O61: 陆川县农业技术推广站 | P61: 专业技术岗位一 | Q61: 1 | R61: 专业技术 | S61: 事业编制 | T61: 185.0 | U61: 76.30 | V61: 68.98 | W61: 1
A62: =SUBTOTAL(3,$B$3:B61) -> 59 | B62: 陈勇君 | C62: 男 | D62: 汉族 | E62: 3145252106013 | F62: 1998.08 | G62: 广西玉林 | H62: 本科 | I62: 学士 | J62: 北部湾大学 | K62: 环境设计 | L62: 2022.06 | O62: 陆川县农业技术推广站 | P62: 专业技术岗位二 | Q62: 1 | R62: 专业技术 | S62: 事业编制 | T62: 180.0 | U62: 78.36 | V62: 69.18 | W62: 1
A63: =SUBTOTAL(3,$B$3:B62) -> 60 | B63: 李米婷 | C63: 女 | D63: 汉族 | E63: 3145252105718 | F63: 1993.10 | G63: 广西陆川 | H63: 本科 | I63: 学士 | J63: 广西大学 | K63: 畜牧兽医 | L63: 2019.06 | O63: 陆川县动物疫病预防控制中心 | P63: 专业技术岗位 | Q63: 1 | R63: 专业技术 | S63: 事业编制 | T63: 134.0 | U63: 68.80 | V63: 56.73 | W63: 1
A64: =SUBTOTAL(3,$B$3:B63) -> 61 | B64: 李美微 | C64: 女 | D64: 汉族 | E64: 3145252100528 | F64: 2004.02 | G64: 广西玉林 | H64: 专科 | I64: 无学位 | J64: 山东畜牧兽医职业学院 | K64: 畜牧兽医 | L64: 2025.07 | O64: 陆川县良种猪场 | P64: 专业技术岗位一 | Q64: 1 | R64: 专业技术 | S64: 事业编制 | T64: 140.5 | U64: 69.80 | V64: 58.32 | W64: 1
A65: =SUBTOTAL(3,$B$3:B64) -> 62 | B65: 黎子宇 | C65: 男 | D65: 汉族 | E65: 3145252102715 | F65: 1998.12 | G65: 广西玉林 | H65: 专科 | I65: 无学位 | J65: 广西大学 | K65: 电气自动 化技术 | L65: 2021.10 | O65: 陆川县良种猪场 | P65: 专业技术岗位二 | Q65: 1 | R65: 专业技术 | S65: 事业编制 | T65: 182.0 | U65: 84.10 | V65: 72.38 | W65: 1
A66: =SUBTOTAL(3,$B$3:B65) -> 63 | B66: 朱宏达 | C66: 男 | D66: 汉族 | E66: 3145252109513 | F66: 1997.09 | G66: 广西博白 | H66: 本科 | I66: 学士 | J66: 西北农林科技大学 | K66: 葡萄与葡萄酒工程 | L66: 2021.07 | O66: 陆川县食品药品检验检测中心 | P66: 专业技术人员 | Q66: 2 | R66: 专技十二级 | S66: 事业编制 | T66: 181.5 | U66: 75.30 | V66: 67.90 | W66: 1
A67: =SUBTOTAL(3,$B$3:B66) -> 64 | B67: 党玉杏 | C67: 女 | D67: 汉族 | E67: 3145252106602 | F67: 1998.10 | G67: 广西北流 | H67: 本科 | I67: 学士 | J67: 广西中医药大学 | K67: 食品质量与安全 | L67: 2021.06 | O67: 陆川县食品药品检验检测中心 | P67: 专业技术人员 | Q67: 2 | R67: 专技十二级 | S67: 事业编制 | T67: 185.5 | U67: 72.96 | V67: 67.40 | W67: 2
A68: =SUBTOTAL(3,$B$3:B67) -> 65 | B68: 钟国宏 | C68: 女 | D68: 汉族 | E68: 1145250903518 | F68: 1996.05 | G68: 广西陆川 | H68: 本科 | I68: 学士 | J68: 广西大学 | K68: 汉语言文学 | L68: 2020.06 | O68: 陆川县医疗保障服务中心 | P68: 工作人员 | Q68: 1 | R68: 管理九级 | S68: 事业编制 | T68: 174.5 | U68: 83.00 | V68: 70.58 | W68: 1
A69: =SUBTOTAL(3,$B$3:B68) -> 66 | B69: 刘枰岍 | C69: 女 | D69: 汉族 | E69: 2145251603408 | F69: 1998.07 | G69: 广西陆川 | H69: 本科 | I69: 学士 | J69: 广西财经学院 | K69: 会计学 | L69: 2020.07 | O69: 陆川县医疗保障服务中心 | P69: 财务人员 | Q69: 1 | R69: 专技十二级 | S69: 事业编制 | T69: 183.0 | U69: 84.20 | V69: 72.60 | W69: 1
A70: =SUBTOTAL(3,$B$3:B69) -> 67 | B70: 钟露慧 | C70: 女 | D70: 汉族 | E70: 1145250900721 | F70: 2000.08 | G70: 广西陆川 | H70: 本科 | I70: 学士 | J70: 广西财经学院 | K70: 秘书学 | L70: 2023.07 | O70: 陆川县应急救援保障中心 | P70: 管理人员 | Q70: 1 | R70: 管理十级 | S70: 事业编制 | T70: 180.5 | U70: 74.80 | V70: 67.48 | W70: 1
A71: =SUBTOTAL(3,$B$3:B70) -> 68 | B71: 姚童 | C71: 女 | D71: 汉族 | E71: 1145250903012 | F71: 1997.01 | G71: 广西陆川 | H71: 本科 | I71: 学士 | J71: 玉林师范学院 | K71: 汉语言文学 | L71: 2025.06 | O71: 陆川县港航发展中心 | P71: 管理人员 | Q71: 1 | R71: 管理十级 | S71: 事业编制 | T71: 169.0 | U71: 87.20 | V71: 71.77 | W71: 1
A72: =SUBTOTAL(3,$B$3:B71) -> 69 | B72: 严钧兰 | C72: 女 | D72: 汉族 | E72: 2145251600530 | F72: 1995.10 | G72: 广西陆川 | H72: 本科 | I72: 学士 | J72: 广西大学 | K72: 会计学 | L72: 2023.06 | O72: 陆川县港航发展中心 | P72: 专业技术人员 | Q72: 1 | R72: 专技十三级 | S72: 事业编制 | T72: 214.0 | U72: 85.50 | V72: 78.42 | W72: 1
A73: =SUBTOTAL(3,$B$3:B72) -> 70 | B73: 王秋蓉 | C73: 女 | D73: 汉族 | E73: 2145251603604 | F73: 2002.09 | G73: 广西陆川 | H73: 本科 | I73: 学士 | J73: 广西大学 | K73: 会计学 | L73: 2024.06 | O73: 陆川县公路发展中心 | P73: 会计 | Q73: 1 | R73: 专技十二级 | S73: 事业编制 | T73: 200.5 | U73: 78.52 | V73: 72.68 | W73: 1
A74: =SUBTOTAL(3,$B$3:B73) -> 71 | B74: 陈俞先 | C74: 女 | D74: 汉族 | E74: 3145252103524 | F74: 2003.01 | G74: 广西陆川 | H74: 本科 | I74: 学士 | J74: 广西师范大学 | K74: 地理信息科学 | L74: 2025.06 | O74: 陆川县土地整理中心 | P74: 专业技术岗 | Q74: 1 | R74: 专技十二级 | S74: 事业编制 | T74: 193.5 | U74: 77.50 | V74: 71.00 | W74: 1
A75: =SUBTOTAL(3,$B$3:B74) -> 72 | B75: 吕嘉华 | C75: 女 | D75: 汉族 | E75: 3145252105805 | F75: 2002.02 | G75: 广西陆川 | H75: 本科 | I75: 学士 | J75: 北部湾大学 | K75: 测绘工程 | L75: 2023.06 | O75: 陆川县土地交易中心 | P75: 专业技术岗一 | Q75: 1 | R75: 专技十二级 | S75: 事业编制 | T75: 181.0 | U75: 86.40 | V75: 73.37 | W75: 1
A76: =SUBTOTAL(3,$B$3:B75) -> 73 | B76: 杨翔 | C76: 男 | D76: 汉族 | E76: 3145252106504 | F76: 1997.04 | G76: 广西陆川 | H76: 本科 | I76: 无学位 | J76: 国家开放大学 | K76: 行政管理 | L76: 2024.01 | O76: 陆川县土地交易中心 | P76: 专业技术岗二 | Q76: 1 | R76: 专技十二级 | S76: 事业编制 | T76: 174.0 | U76: 82.90 | V76: 70.45 | W76: 1
A77: =SUBTOTAL(3,$B$3:B76) -> 74 | B77: 吕梅 | C77: 女 | D77: 汉族 | E77: 3145252307120 | F77: 1998.10 | G77: 广西陆川 | H77: 本科 | I77: 学士 | J77: 广西中医院大学 | K77: 信息管理与信息系统 | L77: 2020.06 | O77: 陆川县土地开发收购储备中心 | P77: 专业技术岗 | Q77: 1 | R77: 专技十三级 | S77: 事业编制 | T77: 189.0 | U77: 79.66 | V77: 71.33 | W77: 1
A78: =SUBTOTAL(3,$B$3:B77) -> 75 | B78: 丘明海 | C78: 男 | D78: 汉族 | E78: 3145252306616 | F78: 2001.11 | G78: 广西陆川 | H78: 本科 | I78: 学士 | J78: 桂林理工大学 | K78: 地理空间信息工程 | L78: 2025.06 | O78: 陆川县田长制服务中心 | P78: 专业技术人员 | Q78: 1 | R78: 专技十三级 | S78: 事业编制 | T78: 172.5 | U78: 83.97 | V78: 70.74 | W78: 1
A79: =SUBTOTAL(3,$B$3:B78) -> 76 | B79: 冯雨 | C79: 男 | D79: 汉族 | E79: 2145251605413 | F79: 2001.05 | G79: 广西博白 | H79: 本科 | I79: 学士 | J79: 广西大学 | K79: 信息与计算科学 | L79: 2024.07 | O79: 陆川县信息中心 | P79: 专业技术岗位 | Q79: 1 | R79: 专技十二级 | S79: 事业编制 | T79: 205.5 | U79: 79.68 | V79: 74.09 | W79: 1
A80: =SUBTOTAL(3,$B$3:B79) -> 77 | B80: 覃瑞丰 | C80: 女 | D80: 壮族 | E80: 2145251600709 | F80: 2001.12 | G80: 广西靖西 | H80: 本科 | I80: 学士 | J80: 浙江工商大学 | K80: 信息管理与信息系统 | L80: 2024.06 | O80: 陆川县公共资源交易中心 | P80: 专业技术岗位 | Q80: 1 | R80: 专技十二级 | S80: 事业编制 | T80: 204.0 | U80: 73.30 | V80: 70.65 | W80: 1
A81: =SUBTOTAL(3,$B$3:B80) -> 78 | B81: 杜柳璇 | C81: 女 | D81: 汉族 | E81: 1145250900425 | F81: 1997.12 | G81: 广西陆川 | H81: 本科 | I81: 学士 | J81: 广西财经学院 | K81: 市场营销 | L81: 2021.07 | O81: 陆川县公共资源交易中心 | P81: 综合管理岗 | Q81: 1 | R81: 管理九级 | S81: 事业编制 | T81: 205.0 | U81: 85.52 | V81: 76.93 | W81: 1
A82: =SUBTOTAL(3,$B$3:B81) -> 79 | B82: 黄宏进 | C82: 男 | D82: 汉族 | E82: 2145251600318 | F82: 2003.01 | G82: 广西陆川 | H82: 本科 | I82: 学士 | J82: 南京邮电大学 | K82: 应用统计学 | L82: 2025.06 | O82: 陆川县北部工业集中区服务中心 | P82: 工作人员 | Q82: 1 | R82: 专技十二级 | S82: 事业编制 | T82: 197.0 | U82: 77.22 | V82: 71.44 | W82: 1
A83: =SUBTOTAL(3,$B$3:B82) -> 80 | B83: 邱浪 | C83: 男 | D83: 汉族 | E83: 1145250902030 | F83: 1998.11 | G83: 广西陆川 | H83: 本科 | I83: 学士 | J83: 广西科技大学 | K83: 测控技术与仪器 | L83: 2021.06 | O83: 陆川县南部产业园服务中心 | P83: 工作人员 | Q83: 1 | R83: 管理十级 | S83: 事业编制 | T83: 178.5 | U83: 79.82 | V83: 69.66 | W83: 1
A84: =SUBTOTAL(3,$B$3:B83) -> 81 | B84: 吕意 | C84: 女 | D84: 汉族 | E84: 2145251603530 | F84: 2001.04 | G84: 广西陆川 | H84: 本科 | I84: 学士 | J84: 重庆师范大学涉外商贸学院 | K84: 经济学 | L84: 2023.06 | O84: 陆川县龙豪创业园服务中心 | P84: 工作人员 | Q84: 1 | R84: 专技十二级 | S84: 事业编制 | T84: 195.0 | U84: 79.87 | V84: =T84/3*0.5+U84*0.5 -> 72.44 | W84: 1
A85: =SUBTOTAL(3,$B$3:B84) -> 82 | B85: 饶玉玲 | C85: 女 | D85: 汉族 | E85: 1145250900930 | F85: 1997.07 | G85: 广西陆川 | H85: 本科 | I85: 学士 | J85: 广西财经学院 | K85: 税收学 | L85: 2021.07 | O85: 陆川县清湖水库管理所 | P85: 管理人员 | Q85: 1 | R85: 管理十级 | S85: 事业编制 | T85: 166.0 | U85: 79.06 | V85: =T85/3*0.5+U85*0.5 -> 67.20 | W85: 1
A86: =SUBTOTAL(3,$B$3:B85) -> 83 | B86: 李品评 | C86: 女 | D86: 汉族 | E86: 3145252307320 | F86: 1986.05 | G86: 广西陆川 | H86: 本科 | I86: 无学位 | J86: 广西开放大学 | K86: 水利水电工程 | L86: 2025.06 | O86: 陆川县清湖水库管理所 | P86: 专技人员 | Q86: 1 | R86: 专技十三级 | S86: 事业编制 | T86: 152.5 | U86: 82.94 | V86: 66.89 | W86: 1
A87: =SUBTOTAL(3,$B$3:B86) -> 84 | B87: 陈昱行 | C87: 男 | D87: 苗族 | E87: 1145250902409 | F87: 2002.01 | G87: 广西陆川 | H87: 本科 | I87: 学士 | J87: 广西师范大学 | K87: 法学 | L87: 2024.06 | O87: 陆川县珊罗镇平安建设综治中心 | P87: 办公室工作岗一 | Q87: 1 | R87: 管理九级 | S87: 事业编制 | T87: 165.0 | U87: 83.06 | V87: 69.03 | W87: 1
A88: =SUBTOTAL(3,$B$3:B87) -> 85 | B88: 陈海英 | C88: 女 | D88: 汉族 | E88: 1145250901927 | F88: 1990.09 | G88: 广西玉林 | H88: 本科 | I88: 学士 | J88: 玉林师范学院 | K88: 汉语言文学（现代文秘方向） | L88: 2014.06 | O88: 陆川县珊罗镇平安建设综治中心 | P88: 办公室工作岗二 | Q88: 1 | R88: 管理九级 | S88: 事业编制 | T88: 170.0 | U88: 85.26 | V88: 70.96 | W88: 1
A89: =SUBTOTAL(3,$B$3:B88) -> 86 | B89: 庞日奎 | C89: 男 | D89: 汉族 | E89: 3145252303106 | F89: 2000.07 | G89: 广西陆川 | H89: 本科 | I89: 学士 | J89: 广西大学 | K89: 网络工程 | L89: 2022.07 | O89: 陆川县平乐镇乡村建设综合保障中心 | P89: 专业技术人员 | Q89: 1 | R89: 专技十二级 | S89: 事业编制 | T89: 157.5 | U89: 86.92 | V89: 69.71 | W89: 1
A90: =SUBTOTAL(3,$B$3:B89) -> 87 | B90: 黎莉 | C90: 女 | D90: 汉族 | E90: 2145251602427 | F90: 1996.05 | G90: 广西福绵 | H90: 本科 | I90: 学士 | J90: 百色学院 | K90: 财务管理 | L90: 2020.06 | O90: 陆川县马坡镇平安建设综治中心 | P90: 专业技术岗一 | Q90: 1 | R90: 专技十二级 | S90: 事业编制 | T90: 187.5 | U90: 81.42 | V90: 71.96 | W90: 1
A91: =SUBTOTAL(3,$B$3:B90) -> 88 | B91: 钟贤雄 | C91: 男 | D91: 汉族 | E91: 2145251605228 | F91: 1999.04 | G91: 广西陆川 | H91: 专科 | I91: 无学位 | J91: 广西经贸职业技术学院 | K91: 广告设计与制作 | L91: 2022.06 | O91: 陆川县马坡镇平安建设综治中心 | P91: 专业技术岗二 | Q91: 1 | R91: 专技十三级 | S91: 事业编制 | T91: 201.5 | U91: 86.08 | V91: 76.62 | W91: 1
A92: =SUBTOTAL(3,$B$3:B91) -> 89 | B92: 梁楚颖 | C92: 女 | D92: 汉族 | E92: 1145250904629 | F92: 1999.03 | G92: 广西陆川 | H92: 本科 | I92: 学士 | J92: 南宁师范大学师园学院 | K92: 学前教育 | L92: 2021.06 | O92: 陆川县马坡镇平安建设综治中心 | P92: 管理岗一 | Q92: 1 | R92: 管理九级 | S92: 事业编制 | T92: 188.5 | U92: 80.76 | V92: 71.80 | W92: 1
A93: =SUBTOTAL(3,$B$3:B92) -> 90 | B93: 邹钱运 | C93: 男 | D93: 汉族 | E93: 1145250904503 | F93: 1995.04 | G93: 广西玉林 | H93: 本科 | I93: 无学位 | J93: 广西师范大学 | K93: 汉语言文学 | L93: 2025.06 | O93: 陆川县马坡镇平安建设综治中心 | P93: 管理岗二 | Q93: 1 | R93: 管理十级 | S93: 事业编制 | T93: 195.0 | U93: 83.30 | V93: 74.15 | W93: 1
A94: =SUBTOTAL(3,$B$3:B93) -> 91 | B94: 陈秋妮 | C94: 女 | D94: 汉族 | E94: 1145250901312 | F94: 1991.05 | G94: 广西玉林 | H94: 专科 | I94: 无学位 | J94: 南宁职业技术学院 | K94: 旅游管理 | L94: 2014.06 | O94: 陆川县马坡镇平安建设综治中心 | P94: 管理岗三 | Q94: 1 | R94: 管理十级 | S94: 事业编制 | T94: 185.0 | U94: 83.14 | V94: 72.40 | W94: 1
A95: =SUBTOTAL(3,$B$3:B94) -> 92 | B95: 刘上榕 | C95: 女 | D95: 汉族 | E95: 1145250903801 | F95: 1996.06 | G95: 广西陆川 | H95: 本科 | I95: 无学位 | J95: 桂林电子科技大学 | K95: 法学 | L95: 2024.06 | O95: 陆川县米场镇平安建设综治中心 | P95: 综合管理岗一 | Q95: 1 | R95: 管理十级 | S95: 事业编制 | T95: 168.5 | U95: 77.76 | V95: 66.96 | W95: 1
A96: =SUBTOTAL(3,$B$3:B95) -> 93 | B96: 郑文瑛 | C96: 女 | D96: 汉族 | E96: 1145250900907 | F96: 1999.11 | G96: 广西福绵 | H96: 本科 | I96: 学士 | J96: 广西大学行健文理学院 | K96: 应用心理学 | L96: 2021.06 | O96: 陆川县米场镇平安建设综治中心 | P96: 综合管理岗二 | Q96: 1 | R96: 管理十级 | S96: 事业编制 | T96: 195.5 | U96: 82.76 | V96: 73.96 | W96: 1
A97: =SUBTOTAL(3,$B$3:B96) -> 94 | B97: 杨雪 | C97: 女 | D97: 汉族 | E97: 1145250902801 | F97: 1998.06 | G97: 广西陆川 | H97: 本科 | I97: 学士 | J97: 广西民族师范学院 | K97: 国际经济与贸易 | L97: 2021.07 | O97: 陆川县米场镇平安建设综治中心 | P97: 综合管理岗三 | Q97: 1 | R97: 管理十级 | S97: 事业编制 | T97: 203.0 | U97: 80.78 | V97: 74.22 | W97: 1
A98: =SUBTOTAL(3,$B$3:B97) -> 95 | B98: 黎美兰 | C98: 女 | D98: 汉族 | E98: 1145250903712 | F98: 2001.02 | G98: 广西陆川 | H98: 本科 | I98: 学士 | J98: 广西师范大学 | K98: 劳动与社会保障 | L98: 2023.06 | O98: 陆川县沙湖镇平安建设综治中心 | P98: 管理人员 | Q98: 1 | R98: 管理 | S98: 事业编制 | T98: 154.0 | U98: 72.28 | V98: 61.81 | W98: 1
A99: =SUBTOTAL(3,$B$3:B98) -> 96 | B99: 何武钊 | C99: 男 | D99: 汉族 | E99: 2145251602211 | F99: 2000.01 | G99: 广西北流 | H99: 专科 | I99: 无学位 | J99: 柳州铁道职业技术学院 | K99: 动车组检修技术 | L99: 2021.06 | N99: 退役士兵 | O99: 陆川县沙湖镇平安建设综治中心 | P99: 专业技术人员 | Q99: 1 | R99: 专业技术 | S99: 事业编制 | T99: 175.0 | U99: 81.24 | V99: 69.79 | W99: 1
A100: =SUBTOTAL(3,$B$3:B99) -> 97 | B100: 吕沛安 | C100: 男 | D100: 汉族 | E100: 2145251601014 | F100: 2000.11 | G100: 广西陆川 | H100: 本科 | I100: 无学位 | J100: 广西警察学院 | K100: 法学 | L100: 2024.06 | O100: 陆川县沙坡镇平安建设综治中心 | P100: 专业技术岗 | Q100: 1 | R100: 专技十二级 | S100: 事业编制 | T100: 181.0 | U100: 79.30 | V100: 69.82 | W100: 1
A101: =SUBTOTAL(3,$B$3:B100) -> 98 | B101: 杨振华 | C101: 男 | D101: 汉族 | E101: 3145252304819 | F101: 2002.05 | G101: 广西陆川 | H101: 本科 | I101: 学士 | J101: 杭州电子科技大学 | K101: 计算机科学与技术 | L101: 2024.06 | O101: 陆川县温泉镇乡村建设综合保障中心 | P101: 专业技术岗一 | Q101: 1 | R101: 专技十二级 | S101: 事业编制 | T101: 186.5 | U101: 76.70 | V101: 69.43 | W101: 1
A102: =SUBTOTAL(3,$B$3:B101) -> 99 | B102: 吕景明 | C102: 男 | D102: 汉族 | E102: 2145251604625 | F102: 1998.02 | G102: 广西陆川 | H102: 本科 | I102: 学士 | J102: 桂林理工大学 | K102: 建筑学 | L102: 2021.06 | O102: 陆川县温泉镇乡村建设综合保障中心 | P102: 专业技术岗二 | Q102: 1 | R102: 专技十二级 | S102: 事业编制 | T102: 208.5 | U102: 82.40 | V102: 75.95 | W102: 1
A103: =SUBTOTAL(3,$B$3:B102) -> 100 | B103: 梁广燊 | C103: 男 | D103: 汉族 | E103: 2145251603717 | F103: 1993.03 | G103: 广西北流 | H103: 本科 | I103: 学士 | J103: 河池学院 | K103: 电子信息工程 | L103: 2017.06 | O103: 陆川县温泉镇便民服务中心 | P103: 专业技术岗位 | Q103: 1 | R103: 专技十二级 | S103: 事业编制 | T103: 174.0 | U103: 86.60 | V103: 72.30 | W103: 1
A104: =SUBTOTAL(3,$B$3:B103) -> 101 | B104: 丘林根 | C104: 男 | D104: 汉族 | E104: 3145252307614 | F104: 2000.07 | G104: 广西陆川 | H104: 本科 | I104: 学士 | J104: 广西民族大学 | K104: 土木工程 | L104: 2023.06 | O104: 陆川县大桥镇乡村建设综合保障中心 | P104: 专业技术岗位 | Q104: 1 | R104: 专技十二级 | S104: 事业编制 | T104: 195.0 | U104: 89.30 | V104: 77.15 | W104: 1
A105: =SUBTOTAL(3,$B$3:B104) -> 102 | B105: 黄子升 | C105: 男 | D105: 汉族 | E105: 3145252307422 | F105: 2000.06 | G105: 广西玉林 | H105: 本科 | I105: 学士 | J105: 玉林师范学院 | K105: 电子信息科学与技术 | L105: 2023.06 | N105: 退役士兵 | O105: 陆川县横山镇便民服务中心 | P105: 专业技术人员一 | Q105: 1 | R105: 专技十三级 | S105: 事业编制 | T105: 155.0 | U105: 76.00 | V105: 63.83 | W105: 1
A106: =SUBTOTAL(3,$B$3:B105) -> 103 | B106: 黎杜玲 | C106: 女 | D106: 汉族 | E106: 2145251601818 | F106: 1985.08 | G106: 广西陆川 | H106: 本科 | I106: 无学位 | J106: 广西师范大学 | K106: 汉语言文学 | L106: 2024.12 | O106: 陆川县横山镇便民服务中心 | P106: 专业技术人员二 | Q106: 1 | R106: 专技十三级 | S106: 事业编制 | T106: 186.5 | U106: 81.20 | V106: 71.68 | W106: 1
A107: =SUBTOTAL(3,$B$3:B106) -> 104 | B107: 吴玉兰 | C107: 女 | D107: 汉族 | E107: 2145251605328 | F107: 2001.08 | G107: 广西北流 | H107: 本科 | I107: 学士 | J107: 梧州学院 | K107: 工商管理 | L107: 2023.06 | O107: 陆川县横山镇平安建设综治中心 | P107: 专业技术人员一 | Q107: 1 | R107: 专技十二级 | S107: 事业编制 | T107: 220.5 | U107: 83.60 | V107: 78.55 | W107: 1
A108: =SUBTOTAL(3,$B$3:B107) -> 105 | B108: 陈奎好 | C108: 男 | D108: 汉族 | E108: 3145252304022 | F108: 1989.06 | G108: 广西陆川 | H108: 专科 | I108: 无学位 | J108: 广西生态工程职业技术学院 | K108: 房地产经营与估价（房地产策划专业方向） | L108: 2011.06 | O108: 陆川县横山镇平安建设综治中心 | P108: 专业技术人员二 | Q108: 1 | R108: 专技十三级 | S108: 事业编制 | T108: 189.0 | U108: 77.30 | V108: 70.15 | W108: 1
A109: =SUBTOTAL(3,$B$3:B108) -> 106 | B109: 周瑜 | C109: 男 | D109: 汉族 | E109: 1145250902602 | F109: 1996.09 | G109: 广西博白 | H109: 本科 | I109: 无学位 | J109: 桂林电子科技大学 | K109: 法学 | L109: 2024.06 | O109: 陆川县横山镇平安建设综治中心 | P109: 管理人员 | Q109: 1 | R109: 管理九级 | S109: 事业编制 | T109: 149.5 | U109: 77.84 | V109: 63.84 | W109: 1
A110: =SUBTOTAL(3,$B$3:B109) -> 107 | B110: 蔡国兴 | C110: 男 | D110: 汉族 | E110: 2145251601324 | F110: 1997.04 | G110: 广东电白 | H110: 本科 | I110: 学士 | J110: 三江学院 | K110: 建筑学 | L110: 2021.06 | O110: 陆川县乌石镇乡村建设综合保障中心 | P110: 街道规划人员 | Q110: 1 | R110: 专技十二级 | S110: 事业编制 | T110: 191.0 | U110: 76.60 | V110: 70.13 | W110: 1
A111: =SUBTOTAL(3,$B$3:B110) -> 108 | B111: 李涣元 | C111: 男 | D111: 汉族 | E111: 2145251604424 | F111: 1996.11 | G111: 广西贵港 | H111: 专科 | I111: 无学位 | J111: 湖南大众传媒职业技术学院 | K111: 新闻采编与制作 | L111: 2018.06 | O111: 陆川县乌石镇乡村建设综合保障中心 | P111: 办公室（宣传员） | Q111: 1 | R111: 专技十三级 | S111: 事业编制 | T111: 198.0 | U111: 81.10 | V111: 73.55 | W111: 1
A112: =SUBTOTAL(3,$B$3:B111) -> 109 | B112: 丘鑫 | C112: 男 | D112: 汉族 | E112: 1145250903803 | F112: 1999.12 | G112: 广西玉林 | H112: 本科 | I112: 学士 | J112: 南宁学院 | K112: 土木工程 | L112: 2023.06 | O112: 陆川县乌石镇乡村建设综合保障中心 | P112: 国土管理人员 | Q112: 1 | R112: 管理十级 | S112: 事业编制 | T112: 209.5 | U112: 83.20 | V112: 76.52 | W112: 1
A113: =SUBTOTAL(3,$B$3:B112) -> 110 | B113: 丘天权 | C113: 男 | D113: 汉族 | E113: 2145251604028 | F113: 1998.05 | G113: 广西陆川 | H113: 本科 | I113: 学士 | J113: 浙江工商大学 | K113: 通信工程 | L113: 2019.06 | O113: 陆川县良田镇乡村建设综合保障中心 | P113: 专业技术人员 | Q113: 1 | R113: 专技十三级 | S113: 事业编制 | T113: 190.0 | U113: 78.00 | V113: 70.67 | W113: 1
A114: =SUBTOTAL(3,$B$3:B113) -> 111 | B114: 丘梦玲 | C114: 女 | D114: 汉族 | E114: 1145250901819 | F114: 1998.08 | G114: 广西陆川 | H114: 本科 | I114: 学士 | J114: 南京审计大学 | K114: 信用管理 | L114: 2022.06 | O114: 陆川县良田镇乡村建设综合保障中心 | P114: 管理人员 | Q114: 1 | R114: 管理十级 | S114: 事业编制 | T114: 189.5 | U114: 80.20 | V114: 71.68 | W114: 1
A115: =SUBTOTAL(3,$B$3:B114) -> 112 | B115: 梁远毅 | C115: 男 | D115: 汉族 | E115: 1145250903606 | F115: 2000.02 | G115: 广西玉林 | H115: 专科 | I115: 无学位 | J115: 广西培贤国际职业学院 | K115: 高速铁路客运乘务 | L115: 2023.06 | N115: 退役士兵 | O115: 陆川县良田镇平安建设综治中心 | P115: 管理人员一 | Q115: 1 | R115: 管理十级 | S115: 事业编制 | T115: 170.0 | U115: 82.80 | V115: 69.73 | W115: 1
A116: =SUBTOTAL(3,$B$3:B115) -> 113 | B116: 阮宇辉 | C116: 男 | D116: 汉族 | E116: 1145250903027 | F116: 2000.03 | G116: 广西陆川 | H116: 本科 | I116: 学士 | J116: 广西大学行健文理学院 | K116: 财务管理 | L116: 2022.06 | O116: 陆川县良田镇平安建设综治中心 | P116: 管理人员二 | Q116: 1 | R116: 管理十级 | S116: 事业编制 | T116: 171.0 | U116: 79.70 | V116: 68.35 | W116: 1
A117: =SUBTOTAL(3,$B$3:B116) -> 114 | B117: 罗一煚 | C117: 男 | D117: 汉族 | E117: 1145250904025 | F117: 2003.09 | G117: 广西陆川 | H117: 专科 | I117: 无学位 | J117: 广西农业职业技术大学 | K117: 计算机网络技术 | L117: 2024.06 | O117: 陆川县良田镇平安建设综治中心 | P117: 管理人员三 | Q117: 1 | R117: 管理十级 | S117: 事业编制 | T117: 159.0 | U117: 66.60 | V117: 59.80 | W117: 1
A118: =SUBTOTAL(3,$B$3:B117) -> 115 | B118: 邹科 | C118: 男 | D118: 汉族 | E118: 2145251603102 | F118: 1986.07 | G118: 广西兴业 | H118: 本科 | I118: 学士 | J118: 武汉理工大学 | K118: 电子商务 | L118: 2009.12 | O118: 陆川县清湖镇平安建设综治中心 | P118: 专业技术人员一 | Q118: 1 | R118: 专技十三级 | S118: 事业编制 | T118: 185.5 | U118: 79.20 | V118: 70.52 | W118: 1
A119: =SUBTOTAL(3,$B$3:B118) -> 116 | B119: 谢保杰 | C119: 男 | D119: 汉族 | E119: 2145251603916 | F119: 1988.06 | G119: 广西博白 | H119: 专科 | I119: 无学位 | J119: 广西机电职业技术学院 | K119: 数控技术 | L119: 2011.07 | O119: 陆川县清湖镇平安建设综治中心 | P119: 专业技术人员二 | Q119: 1 | R119: 专技十三级 | S119: 事业编制 | T119: 182.5 | U119: 82.40 | V119: 71.62 | W119: 1
A120: =SUBTOTAL(3,$B$3:B119) -> 117 | B120: 吴昭兴 | C120: 男 | D120: 汉族 | E120: 2145251605130 | F120: 1991.08 | G120: 广西陆川 | H120: 本科 | I120: 无学位 | J120: 广西大学 | K120: 法学 | L120: 2023.06 | O120: 陆川县古城镇平安建设综治中心 | P120: 专业技术岗 | Q120: 1 | R120: 专业技术 | S120: 事业编制 | T120: 192.0 | U120: 73.00 | V120: 68.50 | W120: 1
A121: =SUBTOTAL(3,$B$3:B120) -> 118 | B121: 韦彩丽 | C121: 女 | D121: 壮族 | E121: 5245251505408 | F121: 1999.05 | G121: 广西贵港 | H121: 本科 | I121: 学士 | J121: 广西医科大学 | K121: 临床医学 | L121: 2024.01 | M121: 取得执业医师执业证及执业医师资格证，并注册内科专业 | O121: 陆川县人民医院 | P121: 内科医师 | Q121: 3 | R121: 专技十二级 | S121: 事业编制 | T121: 177.0 | U121: 81.70 | V121: 70.35 | W121: 1
A122: =SUBTOTAL(3,$B$3:B121) -> 119 | B122: 池婷 | C122: 女 | D122: 汉族 | E122: 5245251505823 | F122: 1996.05 | G122: 广西陆川 | H122: 本科 | I122: 学士 | J122: 桂林医学院 | K122: 临床医学 | L122: 2020.06 | M122: 取得执业医师执业证及执业医师资格证，并注册内科专业 | O122: 陆川县人民医院 | P122: 内科医师 | Q122: 3 | R122: 专技十二级 | S122: 事业编制 | T122: 185.8 | U122: 73.40 | V122: 67.67 | W122: 2
A123: =SUBTOTAL(3,$B$3:B122) -> 120 | B123: 林筱闳 | C123: 女 | D123: 汉族 | E123: 5245251505917 | F123: 1995.08 | G123: 广西陆川 | H123: 本科 | I123: 学士 | J123: 右江民族医学院 | K123: 临床医学 | L123: 2019.07 | M123: 取得执业医师执业证及执业医师资格证，并注册内科专业 | O123: 陆川县人民医院 | P123: 内科医师 | Q123: 3 | R123: 专技十二级 | S123: 事业编制 | T123: 165.7 | U123: 78.60 | V123: 66.92 | W123: 3
A124: =SUBTOTAL(3,$B$3:B123) -> 121 | B124: 陈利广 | C124: 男 | D124: 汉族 | E124: 5245251505709 | F124: 1993.07 | G124: 广西陆川 | H124: 本科 | I124: 学士 | J124: 桂林医学院 | K124: 临床医学 | L124: 2019.06 | M124: 取得执业医师执业证及执业医师资格证，并注册急救医学专业 | O124: 陆川县人民医院 | P124: 急诊科医师 | Q124: 1 | R124: 专技十二级 | S124: 事业编制 | T124: 171.2 | U124: 69.90 | V124: 63.48 | W124: 1
A125: =SUBTOTAL(3,$B$3:B124) -> 122 | B125: 张智 | C125: 男 | D125: 汉族 | E125: 5245251505922 | F125: 1995.07 | G125: 广西陆川 | H125: 本科 | I125: 学士 | J125: 桂林医学院 | K125: 临床医学 | L125: 2018.06 | M125: 取得执业医师资格证和执业医师执业证，并注册外科专业 | O125: 陆川县人民医院 | P125: 外科医师 | Q125: 2 | R125: 专技十二级 | S125: 事业编制 | T125: 169.7 | U125: 84.24 | V125: 70.40 | W125: 1
A126: =SUBTOTAL(3,$B$3:B125) -> 123 | B126: 谢宗良 | C126: 女 | D126: 汉族 | E126: 5145251507211 | F126: 1995.04 | G126: 广西陆川 | H126: 本科 | I126: 学士 | J126: 广西中医药大学赛恩斯新医药学院 | K126: 中医学 | L126: 2019.06 | M126: 取得执业医师执业证及执业医师资格证，并注册中医专业 | O126: 陆川县人民医院 | P126: 中医医师 | Q126: 2 | R126: 专技十二级 | S126: 事业编制 | T126: 143.4 | U126: 83.20 | V126: 65.50 | W126: 1
A127: =SUBTOTAL(3,$B$3:B126) -> 124 | B127: 周春鹏 | C127: 男 | D127: 汉族 | E127: 5145251506416 | F127: 1993.06 | G127: 广西陆川 | H127: 本科 | I127: 学士 | J127: 广西中医药大学赛恩斯新医药学院 | K127: 中医学 | L127: 2018.06 | M127: 取得执业医师执业证及执业医师资格证，并注册中医专业 | O127: 陆川县人民医院 | P127: 中医医师 | Q127: 2 | R127: 专技十二级 | S127: 事业编制 | T127: 127.8 | U127: 83.20 | V127: 62.90 | W127: 2
A128: =SUBTOTAL(3,$B$3:B127) -> 125 | B128: 何超锋 | C128: 男 | D128: 汉族 | E128: 5245251505325 | F128: 1993.01 | G128: 广西陆川 | H128: 本科 | I128: 无学位 | J128: 广州医科大学 | K128: 临床医学 | L128: 2020.10 | M128: 取得执业医师执业证及执业医师资格证，并注册精神卫生专业 | O128: 陆川县精神病专科医院 | P128: 精神科医师 | Q128: 2 | R128: 专技十二级 | S128: 事业编制 | T128: 162.3 | U128: 70.80 | V128: 62.45 | W128: 1
A129: =SUBTOTAL(3,$B$3:B128) -> 126 | B129: 黎小意 | C129: 男 | D129: 汉族 | E129: 5245251506012 | F129: 1992.11 | G129: 广西陆川 | H129: 本科 | I129: 学士 | J129: 右江民族医学院 | K129: 临床医学 | L129: 2016.07 | M129: 取得执业医师执业证及执业医师资格证，并注册精神卫生专业 | O129: 陆川县精神病专科医院 | P129: 精神科医师 | Q129: 2 | R129: 专技十二级 | S129: 事业编制 | T129: 143.7 | U129: 76.40 | V129: 62.15 | W129: 2
A130: =SUBTOTAL(3,$B$3:B129) -> 127 | B130: 陈川驰 | C130: 男 | D130: 汉族 | E130: 5245251505224 | F130: 2003.04 | G130: 广西陆川 | H130: 本科 | I130: 学士 | J130: 右江民族医学院 | K130: 临床医学 | L130: 2025.07 | O130: 陆川县精神病专科医院 | P130: 心理治疗师 | Q130: 1 | R130: 专技十二级 | S130: 聘用人员控制数 | T130: 151.5 | U130: 71.80 | V130: 61.15 | W130: 1
A131: =SUBTOTAL(3,$B$3:B130) -> 128 | B131: 丘玫兰 | C131: 女 | D131: 汉族 | E131: 5445251502723 | F131: 1996.05 | G131: 广西陆川 | H131: 本科 | I131: 学士 | J131: 广西科技大学 | K131: 护理学 | L131: 2017.06 | M131: 取得护士执业证及主管护师资格证 | O131: 陆川县精神病专科医院 | P131: 临床护士 | Q131: 2 | R131: 专技十二级 | S131: 聘用人员控制数 | T131: 180.9 | U131: 83.72 | V131: 72.01 | W131: 1
A132: =SUBTOTAL(3,$B$3:B131) -> 129 | B132: 陈红伟 | C132: 女 | D132: 汉族 | E132: 5445251502529 | F132: 1990.09 | G132: 广西陆川 | H132: 本科 | I132: 无学位 | J132: 四川大学 | K132: 护理学 | L132: 2017.06 | M132: 取得护士执业证及主管护师资格证 | O132: 陆川县精神病专科医院 | P132: 临床护士 | Q132: 2 | R132: 专技十二级 | S132: 聘用人员控制数 | T132: 162.7 | U132: 87.06 | V132: 70.65 | W132: 2
A133: =SUBTOTAL(3,$B$3:B132) -> 130 | B133: 李华夏 | C133: 女 | D133: 汉族 | E133: 2145251602526 | F133: 1999.04 | G133: 广西陆川 | H133: 本科 | I133: 学士 | J133: 南宁学院 | K133: 会计学 | L133: 2021.06 | M133: 取得初级会计师资格证 | O133: 陆川县精神病专科医院 | P133: 财务人员 | Q133: 1 | R133: 专技十二级 | S133: 聘用人员控制数 | T133: 167.0 | U133: 74.90 | V133: 65.28 | W133: 1
A134: =SUBTOTAL(3,$B$3:B133) -> 131 | B134: 刘冠宏 | C134: 男 | D134: 汉族 | E134: 5145251506428 | F134: 1995.02 | G134: 广西陆川 | H134: 本科 | I134: 学士 | J134: 滨州医学院 | K134: 中医学 | L134: 2019.06 | M134: 取得执业医师执业证及执业医师资格证 | N134: 完成住院医师规范化培训、取得规培证 | O134: 陆川县中医院 | P134: 发热门诊医师 | Q134: 2 | R134: 专技十二级 | S134: 聘用人员控制数 | T134: 174.9 | U134: 77.90 | V134: 68.10 | W134: 1
A135: =SUBTOTAL(3,$B$3:B134) -> 132 | B135: 林冰 | C135: 女 | D135: 汉族 | E135: 5145251506406 | F135: 1994.12 | G135: 广西北流 | H135: 本科 | I135: 学士 | J135: 广西中医药大学 | K135: 中医学 | L135: 2018.06 | M135: 取得执业医师执业证及执业医师资格证 | N135: 完成住院医师规范化培训、取得规培证 | O135: 陆川县中医院 | P135: 发热门诊医师 | Q135: 2 | R135: 专技十二级 | S135: 聘用人员控制数 | T135: 169.5 | U135: 77.84 | V135: 67.17 | W135: 2
A136: =SUBTOTAL(3,$B$3:B135) -> 133 | B136: 李家杰 | C136: 男 | D136: 汉族 | E136: 5145251506501 | F136: 1997.10 | G136: 广西陆川 | H136: 本科 | I136: 学士 | J136: 广西中医药大学赛恩斯新医药学院 | K136: 针灸推拿学 | L136: 2021.06 | M136: 取得执业医师执业证及执业医师资格证 | N136: 完成住院医师规范化培训、取得规培证 | O136: 陆川县中医院 | P136: 门诊医师 | Q136: 2 | R136: 专技十二级 | S136: 聘用人员控制数 | T136: 144.4 | U136: 69.50 | V136: 58.82 | W136: 1
A137: =SUBTOTAL(3,$B$3:B136) -> 134 | B137: 罗科宜 | C137: 男 | D137: 汉族 | E137: 5645251500314 | F137: 2002.06 | G137: 广西陆川 | H137: 本科 | I137: 学士 | J137: 杭州医学院 | K137: 预防医学 | L137: 2025.06 | O137: 陆川县疾病预防控制中心 | P137: 疾病预防控制一 | Q137: 1 | R137: 专技十二级 | S137: 事业编制 | T137: 176.3 | U137: 84.86 | V137: 71.81 | W137: 1
A138: =SUBTOTAL(3,$B$3:B137) -> 135 | B138: 温小怡 | C138: 女 | D138: 汉族 | E138: 5645251500320 | F138: 2001.03 | G138: 广西陆川 | H138: 本科 | I138: 学士 | J138: 桂林医学院 | K138: 食品卫生与营养学 | L138: 2024.06 | O138: 陆川县疾病预防控制中心 | P138: 疾病预防控制二 | Q138: 1 | R138: 专技十二级 | S138: 事业编制 | T138: 159.7 | U138: 81.84 | V138: 67.54 | W138: 1
A139: =SUBTOTAL(3,$B$3:B138) -> 136 | B139: 甘芳华 | C139: 女 | D139: 汉族 | E139: 5345251504615 | F139: 1999.11 | G139: 广西桂平 | H139: 专科 | I139: 无学位 | J139: 广西卫生职业技术学院 | K139: 药学 | L139: 2020.06 | M139: 具有药学（师）资格证 | O139: 陆川县皮肤病防治站 | P139: 药剂师 | Q139: 1 | R139: 专技十二级 | S139: 事业编制 | T139: 163.4 | U139: 85.62 | V139: 70.04 | W139: 1
A140: =SUBTOTAL(3,$B$3:B139) -> 137 | B140: 唐海燕 | C140: 女 | D140: 汉族 | E140: 2145251601012 | F140: 2000.04 | G140: 广西玉林 | H140: 本科 | I140: 学士 | J140: 广西财经学院 | K140: 会计学 | L140: 2023.07 | M140: 取得初级会计师资格证 | O140: 陆川县温泉镇卫生院 | P140: 财务岗位 | Q140: 1 | R140: 专技十二级 | S140: 事业编制 | T140: 166.5 | U140: 78.20 | V140: 66.85 | W140: 1
A141: =SUBTOTAL(3,$B$3:B140) -> 138 | B141: 卢娟 | C141: 女 | D141: 汉族 | E141: 5345251504328 | F141: 1999.02 | G141: 广西北流 | H141: 本科 | I141: 学士 | J141: 广西中医药大学 | K141: 中药学 | L141: 2021.06 | M141: 取得中药学（师）职称 | O141: 陆川县平乐镇中心卫生院 | P141: 中药师 | Q141: 1 | R141: 专技十三级 | S141: 聘用人员控制数 | T141: 143.2 | U141: 84.80 | V141: 66.27 | W141: 1
A142: =SUBTOTAL(3,$B$3:B141) -> 139 | B142: 朱丽云 | C142: 女 | D142: 汉族 | E142: 5345251504514 | F142: 1998.09 | G142: 广西陆川 | H142: 本科 | I142: 学士 | J142: 广西科技大学 | K142: 药学 | L142: 2021.06 | M142: 取得药学初级（师）职称 | O142: 陆川县平乐镇中心卫生院 | P142: 西药师 | Q142: 1 | R142: 专技十二级 | S142: 聘用人员控制数 | T142: 173.0 | U142: 63.38 | V142: 60.52 | W142: 1
A143: =SUBTOTAL(3,$B$3:B142) -> 140 | B143: 吴晓彤 | C143: 女 | D143: 汉族 | E143: 5545251500401 | F143: 1997.10 | G143: 广西陆川 | H143: 本科 | I143: 学士 | J143: 右江民族医学院 | K143: 医学检验技术 | L143: 2023.01 | M143: 取得临床医学检验技术初级（师）职称 | O143: 陆川县平乐镇中心卫生院 | P143: 检验科 | Q143: 1 | R143: 专技十二级 | S143: 聘用人员控制数 | T143: 167.7 | U143: 84.36 | V143: 70.13 | W143: 1
A144: =SUBTOTAL(3,$B$3:B143) -> 141 | B144: 庞思远 | C144: 女 | D144: 汉族 | E144: 5145251506522 | F144: 1999.05 | G144: 广西博白 | H144: 本科 | I144: 学士 | J144: 广西中医药大学赛恩斯新医药学院 | K144: 中医学 | L144: 2024.09 | O144: 陆川县良田镇中心卫生院 | P144: 中医科医师 | Q144: 1 | R144: 专技十二级 | S144: 聘用人员控制数 | T144: 118.6 | U144: 67.00 | V144: 53.27 | W144: 1
A145: =SUBTOTAL(3,$B$3:B144) -> 142 | B145: 吕婉芙 | C145: 女 | D145: 汉族 | E145: 5245251506005 | F145: 2003.06 | G145: 广西陆川 | H145: 专科 | I145: 无学位 | J145: 伊春职业学院 | K145: 口腔医学 | L145: 2025.06 | O145: 陆川县良田镇中心卫生院 | P145: 口腔科医师 | Q145: 1 | R145: 专技十三级 | S145: 聘用人员控制数 | T145: 95.8 | U145: 78.90 | V145: 55.42 | W145: 1
A146: =SUBTOTAL(3,$B$3:B145) -> 143 | B146: 陈莹 | C146: 男 | D146: 汉族 | E146: 5545251500906 | F146: 2002.04 | G146: 广西陆川 | H146: 本科 | I146: 学士 | J146: 桂林医学院 | K146: 医学检验技术 | L146: 2024.06 | O146: 陆川县古城镇卫生院 | P146: 检验技师 | Q146: 1 | R146: 专技十二级 | S146: 聘用人员控制数 | T146: 189.0 | U146: 80.20 | V146: 71.60 | W146: 1
A147: =SUBTOTAL(3,$B$3:B146) -> 144 | B147: 梁城菱 | C147: 女 | D147: 汉族 | E147: 4245251702320 | F147: 2001.03 | G147: 广西北流 | H147: 本科 | I147: 学士 | J147: 广西师范大学漓江学院 | K147: 汉语言文学 | L147: 2025.06 | M147: 取得高中语文教师资格证 | O147: 陆川中学 | P147: 高中语文教师 | Q147: 1 | R147: 专业技术 | S147: 事业编制 | T147: 168.0 | U147: 89.34 | V147: 72.67 | W147: 1
A148: =SUBTOTAL(3,$B$3:B147) -> 145 | B148: 韦宗林 | C148: 男 | D148: 汉族 | E148: 4245251702128 | F148: 2003.07 | G148: 广西北流 | H148: 本科 | I148: 学士 | J148: 南宁师范大学 | K148: 数学与应用数学 | L148: 2025.06 | M148: 取得高中数学教师资格证 | O148: 陆川中学 | P148: 高中数学教师 | Q148: 2 | R148: 专业技术 | S148: 事业编制 | T148: 157.5 | U148: 76.84 | V148: 64.67 | W148: 1
A149: =SUBTOTAL(3,$B$3:B148) -> 146 | B149: 李明蔚 | C149: 男 | D149: 汉族 | E149: 4245251700806 | F149: 2001.02 | G149: 广西玉林 | H149: 本科 | I149: 学士 | J149: 桂林电子科技大学 | K149: 信息与计算科学 | L149: 2023.07 | M149: 取得高中数学教师资格证 | O149: 陆川中学 | P149: 高中数学教师 | Q149: 2 | R149: 专业技术 | S149: 事业编制 | T149: 134.0 | U149: 79.70 | V149: =T149/3*0.5+U149*0.5 -> 62.18 | W149: 2
A150: =SUBTOTAL(3,$B$3:B149) -> 147 | B150: 吴雨婷 | C150: 女 | D150: 汉族 | E150: 4245251702604 | F150: 1996.05 | G150: 广西陆川 | H150: 本科 | I150: 学士 | J150: 广西民族师范学院 | K150: 英语 | L150: 2020.07 | M150: 取得高中英语教师资格证 | O150: 陆川中学 | P150: 高中英语教师 | Q150: 2 | R150: 专业技术 | S150: 事业编制 | T150: 170.0 | U150: 79.60 | V150: =T150/3*0.5+U150*0.5 -> 68.13 | W150: 2
A151: =SUBTOTAL(3,$B$3:B150) -> 148 | B151: 蒋福燕 | C151: 女 | D151: 汉族 | E151: 4245251702802 | F151: 2000.05 | G151: 广西陆川 | H151: 本科 | I151: 学士 | J151: 南宁师范大学 | K151: 商务英语 | L151: 2022.06 | M151: 取得高中英语教师资格证 | O151: 陆川中学 | P151: 高中英语教师 | Q151: 2 | R151: 专业技术 | S151: 事业编制 | T151: 164.0 | U151: 79.24 | V151: =T151/3*0.5+U151*0.5 -> 66.95 | W151: 3 | X151: 递补
A152: =SUBTOTAL(3,$B$3:B151) -> 149 | B152: 吕霖英 | C152: 女 | D152: 汉族 | E152: 4245251700924 | F152: 1998.05 | G152: 广西陆川 | H152: 本科 | I152: 学士 | J152: 玉林师范学院 | K152: 物理学 | L152: 2020.06 | M152: 取得高中物理教师资格证 | O152: 陆川中学 | P152: 高中物理教师 | Q152: 3 | R152: 专业技术 | S152: 事业编制 | T152: 178.0 | U152: 78.60 | V152: =T152/3*0.5+U152*0.5 -> 68.97 | W152: 1
A153: =SUBTOTAL(3,$B$3:B152) -> 150 | B153: 江源 | C153: 男 | D153: 汉族 | E153: 4245251701318 | F153: 1998.12 | G153: 广西陆川 | H153: 本科 | I153: 学士 | J153: 玉林师范学院 | K153: 物理学 | L153: 2022.06 | M153: 取得高中物理教师资格证 | O153: 陆川中学 | P153: 高中物理教师 | Q153: 3 | R153: 专业技术 | S153: 事业编制 | T153: 150.5 | U153: 78.84 | V153: =T153/3*0.5+U153*0.5 -> 64.50 | W153: 3
A154: =SUBTOTAL(3,$B$3:B153) -> 151 | B154: 林丹其 | C154: 女 | D154: 汉族 | E154: 4245251702916 | F154: 2001.12 | G154: 广西容县 | H154: 本科 | I154: 学士 | J154: 南宁师范大学 | K154: 化学 | L154: 2025.06 | M154: 取得高中化学教师资格证 | O154: 陆川中学 | P154: 高中化学教师 | Q154: 1 | R154: 专业技术 | S154: 事业编制 | T154: 186.5 | U154: 78.78 | V154: 70.47 | W154: 1
A155: =SUBTOTAL(3,$B$3:B154) -> 152 | B155: 梁宝之 | C155: 女 | D155: 汉族 | E155: 4245251702905 | F155: 2002.09 | G155: 广西陆川 | H155: 本科 | I155: 学士 | J155: 广西师范大学 | K155: 生物技术 | L155: 2025.06 | M155: 取得高中生物教师资格证 | O155: 陆川中学 | P155: 高中生物教师 | Q155: 1 | R155: 专业技术 | S155: 事业编制 | T155: 192.0 | U155: 80.54 | V155: 72.27 | W155: 1
A156: =SUBTOTAL(3,$B$3:B155) -> 153 | B156: 黄晓莲 | C156: 女 | D156: 汉族 | E156: 4245251702615 | F156: 2002.07 | G156: 广西钦州 | H156: 本科 | I156: 学士 | J156: 玉林师范学院 | K156: 应用心理学 | L156: 2025.06 | M156: 取得高中心理健康教育教师资格证 | O156: 陆川中学 | P156: 高中心理辅导教师 | Q156: 1 | R156: 专业技术 | S156: 事业编制 | T156: 178.5 | U156: 83.92 | V156: 71.71 | W156: 1
A157: =SUBTOTAL(3,$B$3:B156) -> 154 | B157: 赖宗妙 | C157: 女 | D157: 汉族 | E157: 4245251700219 | F157: 2003.08 | G157: 广西陆川 | H157: 本科 | I157: 学士 | J157: 百色学院 | K157: 化学 | L157: 2025.06 | M157: 取得高中化学教师资格证 | O157: 陆川中学（大桥校区） | P157: 高中化学教师 | Q157: 2 | R157: 专业技术 | S157: 事业编制 | T157: 149.5 | U157: 82.00 | V157: 65.92 | W157: 1
A158: =SUBTOTAL(3,$B$3:B157) -> 155 | B158: 李弘雁 | C158: 女 | D158: 汉族 | E158: 4245251701223 | F158: 2000.12 | G158: 广西兴业 | H158: 本科 | I158: 学士 | J158: 广西大学 | K158: 应用化学 | L158: 2023.07 | M158: 取得高中化学教师资格证 | O158: 陆川中学（大桥校区） | P158: 高中化学教师 | Q158: 2 | R158: 专业技术 | S158: 事业编制 | T158: 142.5 | U158: 80.50 | V158: 64.00 | W158: 2
A159: =SUBTOTAL(3,$B$3:B158) -> 156 | B159: 陈玉龙 | C159: 女 | D159: 汉族 | E159: 4245251701330 | F159: 2000.01 | G159: 广西陆川 | H159: 本科 | I159: 学士 | J159: 长春师范大学 | K159: 生物科学 | L159: 2023.06 | M159: 取得高中生物教师资格证 | O159: 陆川中学（大桥校区） | P159: 高中生物教师 | Q159: 2 | R159: 专业技术 | S159: 事业编制 | T159: 145.0 | U159: 67.70 | V159: 58.02 | W159: 2
A160: =SUBTOTAL(3,$B$3:B159) -> 157 | B160: 庞小曼 | C160: 女 | D160: 汉族 | E160: 4245251701702 | F160: 2003.03 | G160: 广西博白 | H160: 本科 | I160: 学士 | J160: 南宁师范大学 | K160: 人文地理与城乡规划 | L160: 2025.06 | M160: 取得高中地理教师资格证 | O160: 陆川中学（大桥校区） | P160: 高中地理教师 | Q160: 1 | R160: 专业技术 | S160: 事业编制 | T160: 170.5 | U160: 81.60 | V160: 69.22 | W160: 1
A161: =SUBTOTAL(3,$B$3:B160) -> 158 | B161: 李卓欣 | C161: 女 | D161: 汉族 | E161: 4245251702124 | F161: 2001.04 | G161: 广西玉林 | H161: 本科 | I161: 学士 | J161: 梧州学院 | K161: 汉语言文学 | L161: 2023.06 | M161: 取得高中语文教师资格证 | O161: 陆川县实验中学 | P161: 高中语文教师 | Q161: 1 | R161: 专业技术 | S161: 事业编制 | T161: 155.5 | U161: 82.80 | V161: 67.32 | W161: 1
A162: =SUBTOTAL(3,$B$3:B161) -> 159 | B162: 罗靖秋 | C162: 男 | D162: 汉族 | E162: 4245251700126 | F162: 1991.01 | G162: 广西陆川 | H162: 本科 | I162: 学士 | J162: 台州学院 | K162: 物理学（师范） | L162: 2015.06 | M162: 取得高中物理教师资格证 | O162: 陆川县实验中学 | P162: 高中物理教师 | Q162: 2 | R162: 专业技术 | S162: 事业编制 | T162: 141.5 | U162: 79.30 | V162: 63.23 | W162: 1
A163: =SUBTOTAL(3,$B$3:B162) -> 160 | B163: 黄康 | C163: 男 | D163: 汉族 | E163: 4245251702719 | F163: 1996.02 | G163: 广西陆川 | H163: 本科 | I163: 学士 | J163: 南宁师范大学 | K163: 应用电子技术教育 | L163: 2020.06 | M163: 取得高中物理教师资格证 | O163: 陆川县实验中学 | P163: 高中物理教师 | Q163: 2 | R163: 专业技术 | S163: 事业编制 | T163: 132.0 | U163: 65.70 | V163: 54.85 | W163: 2
A164: =SUBTOTAL(3,$B$3:B163) -> 161 | B164: 吴采霞 | C164: 女 | D164: 汉族 | E164: 4245251701415 | F164: 2003.06 | G164: 广西陆川 | H164: 本科 | I164: 学士 | J164: 赤峰学院 | K164: 历史学 | L164: 2025.06 | M164: 取得高中历史教师资格证 | O164: 陆川县实验中学 | P164: 高中历史教师 | Q164: 2 | R164: 专业技术 | S164: 事业编制 | T164: 154.5 | U164: 85.50 | V164: 68.50 | W164: 1
A165: =SUBTOTAL(3,$B$3:B164) -> 162 | B165: 陈思怡 | C165: 女 | D165: 汉族 | E165: 4245251702601 | F165: 2003.10 | G165: 广西陆川 | H165: 本科 | I165: 学士 | J165: 玉林师范学院 | K165: 历史学 | L165: 2025.06 | M165: 取得高中历史教师资格证 | O165: 陆川县实验中学 | P165: 高中历史教师 | Q165: 2 | R165: 专业技术 | S165: 事业编制 | T165: 150.5 | U165: 78.80 | V165: 64.48 | W165: 2
A166: =SUBTOTAL(3,$B$3:B165) -> 163 | B166: 梁艳艳 | C166: 女 | D166: 汉族 | E166: 4245251701310 | F166: 2002.03 | G166: 广西博白 | H166: 本科 | I166: 学士 | J166: 广西师范大学 | K166: 生物科学 | L166: 2025.06 | M166: 取得高中生物教师资格证 | O166: 陆川县实验中学 | P166: 高中生物教师 | Q166: 2 | R166: 专业技术 | S166: 事业编制 | T166: 160.5 | U166: 70.80 | V166: 62.15 | W166: 2
A167: =SUBTOTAL(3,$B$3:B166) -> 164 | B167: 彭思婷 | C167: 女 | D167: 汉族 | E167: 4245251700418 | F167: 2002.11 | G167: 广西博白 | H167: 本科 | I167: 学士 | J167: 广西民族师范学院 | K167: 生物科学 | L167: 2025.06 | M167: 取得高中生物教师资格证 | O167: 陆川县实验中学 | P167: 高中生物教师 | Q167: 2 | R167: 专业技术 | S167: 事业编制 | T167: 147.5 | U167: 68.60 | V167: 58.88 | W167: 4 | X167: 递补
A168: =SUBTOTAL(3,$B$3:B167) -> 165 | B168: 梁燕 | C168: 女 | D168: 汉族 | E168: 4245251701718 | F168: 2000.10 | G168: 广西岑溪 | H168: 本科 | I168: 学士 | J168: 北部湾大学 | K168: 地理科学 | L168: 2025.06 | M168: 取得高中地理教师资格证 | O168: 陆川县实验中学 | P168: 高中地理教师 | Q168: 1 | R168: 专业技术 | S168: 事业编制 | T168: 161.5 | U168: 79.00 | V168: 66.42 | W168: 2 | X168: 递补
A169: =SUBTOTAL(3,$B$3:B168) -> 166 | B169: 刘捷玲 | C169: 女 | D169: 汉族 | E169: 4245251700417 | F169: 2003.09 | G169: 广西桂平 | H169: 本科 | I169: 学士 | J169: 玉林师范学院 | K169: 思想政治教育 | L169: 2025.06 | M169: 取得高中思想政治教师资格证 | O169: 陆川县第二中学 | P169: 高中政治教师 | Q169: 2 | R169: 专业技术 | S169: 事业编制 | T169: 172.5 | U169: 80.90 | V169: 69.20 | W169: 2
A170: =SUBTOTAL(3,$B$3:B169) -> 167 | B170: 胡麟 | C170: 女 | D170: 汉族 | E170: 4245251701408 | F170: 2001.05 | G170: 广西陆川 | H170: 本科 | I170: 学士 | J170: 玉林师范学院 | K170: 汉语国际教育 | L170: 2024.06 | M170: 取得高中语文教师资格证 | O170: 陆川县第二中学 | P170: 高中语文教师 | Q170: 1 | R170: 专业技术 | S170: 事业编制 | T170: 168.5 | U170: 84.02 | V170: 70.09 | W170: 1
A171: =SUBTOTAL(3,$B$3:B170) -> 168 | B171: 张琳 | C171: 女 | D171: 汉族 | E171: 4245251700213 | F171: 2001.10 | G171: 广西陆川 | H171: 本科 | I171: 学士 | J171: 百色学院 | K171: 数学与应用数学 | L171: 2024.06 | M171: 取得高中数学教师资格证 | O171: 陆川县第二中学 | P171: 高中数学教师 | Q171: 2 | R171: 专业技术 | S171: 事业编制 | T171: 148.5 | U171: 80.08 | V171: 64.79 | W171: 1
A172: =SUBTOTAL(3,$B$3:B171) -> 169 | B172: 吕雨洁 | C172: 女 | D172: 汉族 | E172: 4245251701717 | F172: 2002.05 | G172: 广西陆川 | H172: 本科 | I172: 学士 | J172: 南宁师范大学 | K172: 数学与应用数学 | L172: 2025.06 | M172: 取得高中数学教师资格证 | O172: 陆川县第二中学 | P172: 高中数学教师 | Q172: 2 | R172: 专业技术 | S172: 事业编制 | T172: 155.5 | U172: 75.40 | V172: 63.62 | W172: 2
A173: =SUBTOTAL(3,$B$3:B172) -> 170 | B173: 江雨萍 | C173: 女 | D173: 汉族 | E173: 4245251702930 | F173: 2002.07 | G173: 广西博白 | H173: 本科 | I173: 学士 | J173: 玉林师范学院 | K173: 英语 | L173: 2025.06 | M173: 取得高中英语教师资格证 | O173: 陆川县第二中学 | P173: 高中英语教师 | Q173: 2 | R173: 专业技术 | S173: 事业编制 | T173: 157.5 | U173: 83.62 | V173: 68.06 | W173: 1
A174: =SUBTOTAL(3,$B$3:B173) -> 171 | B174: 梁醒梅 | C174: 女 | D174: 汉族 | E174: 4245251702306 | F174: 1996.05 | G174: 广西贵港 | H174: 本科 | I174: 学士 | J174: 北方民族大学 | K174: 英语 | L174: 2020.06 | M174: 取得高中英语教师资格证 | O174: 陆川县第二中学 | P174: 高中英语教师 | Q174: 2 | R174: 专业技术 | S174: 事业编制 | T174: 154.5 | U174: 84.50 | V174: 68.00 | W174: 2
A175: =SUBTOTAL(3,$B$3:B174) -> 172 | B175: 林巳榆 | C175: 女 | D175: 汉族 | E175: 4245251702714 | F175: 2002.10 | G175: 广西北流 | H175: 本科 | I175: 学士 | J175: 广西民族大学 | K175: 生物技术 | L175: 2025.06 | M175: 取得高中生物教师资格证 | O175: 陆川县第二中学 | P175: 高中生物教师 | Q175: 1 | R175: 专业技术 | S175: 事业编制 | T175: 167.0 | U175: 85.48 | V175: 70.57 | W175: 1
A176: =SUBTOTAL(3,$B$3:B175) -> 173 | B176: 黄君茹 | C176: 女 | D176: 汉族 | E176: 4245251702701 | F176: 2001.01 | G176: 广西钦州 | H176: 本科 | I176: 学士 | J176: 扬州大学 | K176: 数学与应用数学 | L176: 2025.06 | M176: 取得高中数学教师资格证 | O176: 陆川县第三中学 | P176: 高中数学教师 | Q176: 4 | R176: 专业技术 | S176: 事业编制 | T176: 142.0 | U176: 78.86 | V176: 63.10 | W176: 1
A177: =SUBTOTAL(3,$B$3:B176) -> 174 | B177: 陈红 | C177: 女 | D177: 汉族 | E177: 4245251702904 | F177: 2002.07 | G177: 广西陆川 | H177: 本科 | I177: 学士 | J177: 河池学院 | K177: 数学与应用数学 | L177: 2025.06 | M177: 取得高中数学教师资格证 | O177: 陆川县第三中学 | P177: 高中数学教师 | Q177: 4 | R177: 专业技术 | S177: 事业编制 | T177: 136.0 | U177: 77.00 | V177: 61.17 | W177: 2
A178: =SUBTOTAL(3,$B$3:B177) -> 175 | B178: 梁芸祯 | C178: 女 | D178: 汉族 | E178: 4245251702912 | F178: 2000.07 | G178: 广西北流 | H178: 本科 | I178: 学士 | J178: 右江民族医学院 | K178: 英语 | L178: 2022.07 | M178: 取得高中英语教师资格证 | O178: 陆川县第三中学 | P178: 高中英语教师 | Q178: 1 | R178: 专业技术 | S178: 事业编制 | T178: 167.5 | U178: 78.32 | V178: 67.08 | W178: 1
A179: =SUBTOTAL(3,$B$3:B178) -> 176 | B179: 黄振梅 | C179: 女 | D179: 汉族 | E179: 4245251700124 | F179: 2002.08 | G179: 广西陆川 | H179: 本科 | I179: 学士 | J179: 百色学院 | K179: 历史学 | L179: 2025.06 | M179: 取得高中历史教师资格证 | O179: 陆川县第三中学 | P179: 高中历史教师 | Q179: 1 | R179: 专业技术 | S179: 事业编制 | T179: 107.5 | U179: 71.00 | V179: 53.42 | W179: 1
A180: =SUBTOTAL(3,$B$3:B179) -> 177 | B180: 叶可 | C180: 女 | D180: 汉族 | E180: 4245251702203 | F180: 2003.07 | G180: 广西北流 | H180: 本科 | I180: 学士 | J180: 南宁师范大学 | K180: 地理科学 | L180: 2025.06 | M180: 取得高中地理教师资格证 | O180: 陆川县第三中学 | P180: 高中地理教师 | Q180: 2 | R180: 专业技术 | S180: 事业编制 | T180: 170.5 | U180: 87.30 | V180: 72.07 | W180: 1
A181: =SUBTOTAL(3,$B$3:B180) -> 178 | B181: 苏广兰 | C181: 女 | D181: 汉族 | E181: 4245251702718 | F181: 1994.08 | G181: 广西陆川 | H181: 本科 | I181: 学士 | J181: 广西师范学院 | K181: 地理科学 | L181: 2017.06 | M181: 取得高中地理教师资格证 | O181: 陆川县第三中学 | P181: 高中地理教师 | Q181: 2 | R181: 专业技术 | S181: 事业编制 | T181: 162.0 | U181: 82.10 | V181: 68.05 | W181: 2
A182: =SUBTOTAL(3,$B$3:B181) -> 179 | B182: 丘楠 | C182: 女 | D182: 汉族 | E182: 3145252307312 | F182: 1998.11 | G182: 广西陆川 | H182: 本科 | I182: 学士 | J182: 玉林师范学院 | K182: 财务管理 | L182: 2021.06 | O182: 陆川县第三中学 | P182: 财务人员 | Q182: 1 | R182: 专业技术 | S182: 事业编制 | T182: 160.5 | U182: 83.82 | V182: 68.66 | W182: 1
A183: =SUBTOTAL(3,$B$3:B182) -> 180 | B183: 黄声锦 | C183: 女 | D183: 汉族 | E183: 4245251702708 | F183: 1997.06 | G183: 广西玉林 | H183: 本科 | I183: 学士 | J183: 广西师范大学 | K183: 汉语国际教育 | L183: 2020.06 | M183: 取得高中语文教师资格证 | O183: 陆川县城北高级中学 | P183: 高中语文教师 | Q183: 2 | R183: 专业技术 | S183: 事业编制 | T183: 190.5 | U183: 83.90 | V183: 73.70 | W183: 1
A184: =SUBTOTAL(3,$B$3:B183) -> 181 | B184: 黄维维 | C184: 女 | D184: 汉族 | E184: 4245251702127 | F184: 2002.03 | G184: 广西玉林 | H184: 本科 | I184: 学士 | J184: 北部湾大学 | K184: 汉语国际教育 | L184: 2025.06 | M184: 取得高中语文教师资格证 | O184: 陆川县城北高级中学 | P184: 高中语文教师 | Q184: 2 | R184: 专业技术 | S184: 事业编制 | T184: 185.5 | U184: 85.10 | V184: 73.47 | W184: 2
A185: =SUBTOTAL(3,$B$3:B184) -> 182 | B185: 梁仟威 | C185: 男 | D185: 汉族 | E185: 4245251702515 | F185: 2003.09 | G185: 广西陆川 | H185: 本科 | I185: 学士 | J185: 桂林学院 | K185: 数学与应用数学 | L185: 2025.06 | M185: 取得高中数学教师资格证 | O185: 陆川县城北高级中学 | P185: 高中数学教师 | Q185: 2 | R185: 专业技术 | S185: 事业编制 | T185: 133.5 | U185: 73.40 | V185: 58.95 | W185: 2
A186: =SUBTOTAL(3,$B$3:B185) -> 183 | B186: 庞建浩 | C186: 男 | D186: 汉族 | E186: 4245251702026 | F186: 1994.05 | G186: 广西玉林 | H186: 本科 | I186: 学士 | J186: 梧州学院 | K186: 应用物理学 | L186: 2017.11 | M186: 取得高中物理教师资格证 | O186: 陆川县城北高级中学 | P186: 高中物理教师 | Q186: 3 | R186: 专业技术 | S186: 事业编制 | T186: 144.0 | U186: 77.00 | V186: 62.50 | W186: 1
A187: =SUBTOTAL(3,$B$3:B186) -> 184 | B187: 黄星桦 | C187: 女 | D187: 汉族 | E187: 4245251700824 | F187: 2003.07 | G187: 广西陆川 | H187: 本科 | I187: 学士 | J187: 北部湾大学 | K187: 物理学 | L187: 2024.06 | M187: 取得高中物理教师资格证 | O187: 陆川县城北高级中学 | P187: 高中物理教师 | Q187: 3 | R187: 专业技术 | S187: 事业编制 | T187: 135.0 | U187: 79.60 | V187: 62.30 | W187: 2
A188: =SUBTOTAL(3,$B$3:B187) -> 185 | B188: 钟丽 | C188: 女 | D188: 汉族 | E188: 4245251702814 | F188: 1994.03 | G188: 广西陆川 | H188: 本科 | I188: 学士 | J188: 贺州学院 | K188: 历史学 | L188: 2018.06 | M188: 取得高中历史教师资格证 | O188: 陆川县城北高级中学 | P188: 高中历史教师 | Q188: 1 | R188: 专业技术 | S188: 事业编制 | T188: 155.0 | U188: 80.00 | V188: 65.83 | W188: 1
A189: =SUBTOTAL(3,$B$3:B188) -> 186 | B189: 谭雨佳 | C189: 女 | D189: 汉族 | E189: 4245251702902 | F189: 2003.07 | G189: 广西陆川 | H189: 本科 | I189: 学士 | J189: 贺州学院 | K189: 汉语言文学 | L189: 2025.06 | M189: 取得高中语文教师资格证 | O189: 陆川中学附属初级中学 | P189: 初中语文教师 | Q189: 2 | R189: 专业技术 | S189: 事业编制 | T189: 174.0 | U189: 82.16 | V189: 70.08 | W189: 1
A190: =SUBTOTAL(3,$B$3:B189) -> 187 | B190: 蒋彩凤 | C190: 女 | D190: 汉族 | E190: 4245251701621 | F190: 2000.01 | G190: 广西玉林 | H190: 本科 | I190: 学士 | J190: 河池学院 | K190: 汉语言文学 | L190: 2023.06 | M190: 取得高中语文教师资格证 | O190: 陆川中学附属初级中学 | P190: 初中语文教师 | Q190: 2 | R190: 专业技术 | S190: 事业编制 | T190: 165.0 | U190: 82.56 | V190: 68.78 | W190: 2
A191: =SUBTOTAL(3,$B$3:B190) -> 188 | B191: 黄文 | C191: 女 | D191: 汉族 | E191: 4245251702112 | F191: 2002.09 | G191: 广西钦州 | H191: 本科 | I191: 学士 | J191: 南宁师范大学 | K191: 数学与应用数学 | L191: 2025.06 | M191: 取得高中数学教师资格证 | O191: 陆川中学附属初级中学 | P191: 初中数学教师 | Q191: 1 | R191: 专业技术 | S191: 事业编制 | T191: 134.0 | U191: 85.00 | V191: 64.83 | W191: 1
A192: =SUBTOTAL(3,$B$3:B191) -> 189 | B192: 林宇 | C192: 女 | D192: 汉族 | E192: 4245251701112 | F192: 1998.01 | G192: 广西陆川 | H192: 本科 | I192: 学士 | J192: 闽江学院 | K192: 英语 | L192: 2020.06 | M192: 取得高中英语教师资格证 | O192: 陆川中学附属初级中学 | P192: 初中英语教师 | Q192: 2 | R192: 专业技术 | S192: 事业编制 | T192: 149.0 | U192: 81.80 | V192: 65.73 | W192: 1
A193: =SUBTOTAL(3,$B$3:B192) -> 190 | B193: 陆清梅 | C193: 女 | D193: 汉族 | E193: 4245251701021 | F193: 2002.09 | G193: 广西容县 | H193: 本科 | I193: 学士 | J193: 广西民族师范学院 | K193: 英语 | L193: 2025.06 | M193: 取得高中英语教师资格证 | O193: 陆川中学附属初级中学 | P193: 初中英语教师 | Q193: 2 | R193: 专业技术 | S193: 事业编制 | T193: 156.5 | U193: 77.46 | V193: 64.81 | W193: 2
A194: =SUBTOTAL(3,$B$3:B193) -> 191 | B194: 杨海燕 | C194: 女 | D194: 汉族 | E194: 4245251702213 | F194: 2000.12 | G194: 广西灵山 | H194: 本科 | I194: 学士 | J194: 玉林师范学院 | K194: 电子信息科学与技术 | L194: 2024.06 | M194: 取得初中物理教师资格证 | O194: 陆川中学附属初级中学 | P194: 初中物理教师 | Q194: 2 | R194: 专业技术 | S194: 事业编制 | T194: 179.0 | U194: 76.00 | V194: =T194/3*0.5+U194*0.5 -> 67.83 | W194: 2
A195: =SUBTOTAL(3,$B$3:B194) -> 192 | B195: 范纯焰 | C195: 女 | D195: 汉族 | E195: 4245251700926 | F195: 2004.06 | G195: 广西陆川 | H195: 本科 | I195: 学士 | J195: 广西师范大学 | K195: 应用心理学 | L195: 2025.06 | M195: 取得高中心理健康教育教师资格证 | O195: 陆川中学附属初级中学 | P195: 初中心理辅导教师 | Q195: 2 | R195: 专业技术 | S195: 事业编制 | T195: 160.0 | U195: 79.76 | V195: 66.55 | W195: 1
A196: =SUBTOTAL(3,$B$3:B195) -> 193 | B196: 李宏佳 | C196: 女 | D196: 壮族 | E196: 4245251702710 | F196: 2001.08 | G196: 广西百色 | H196: 本科 | I196: 学士 | J196: 南宁师范大学师园学院 | K196: 应用心理学 | L196: 2025.06 | M196: 取得高中心理健康教育教师资格证 | O196: 陆川中学附属初级中学 | P196: 初中心理辅导教师 | Q196: 2 | R196: 专业技术 | S196: 事业编制 | T196: 186.0 | U196: 68.06 | V196: 65.03 | W196: 2
A197: =SUBTOTAL(3,$B$3:B196) -> 194 | B197: 吴易民 | C197: 女 | D197: 汉族 | E197: 4245251700110 | F197: 1999.07 | G197: 广西陆川 | H197: 本科 | I197: 学士 | J197: 南宁师范大学师园学院 | K197: 数学与应用数学 | L197: 2023.06 | M197: 取得初中数学教师资格证 | O197: 陆川县初级中学 | P197: 初中数学教师 | Q197: 3 | R197: 专业技术 | S197: 事业编制 | T197: 143.5 | U197: 78.46 | V197: 63.15 | W197: 2
A198: =SUBTOTAL(3,$B$3:B197) -> 195 | B198: 刘丽莹 | C198: 女 | D198: 汉族 | E198: 4245251701101 | F198: 2002.10 | G198: 广西陆川 | H198: 本科 | I198: 学士 | J198: 广西师范大学 | K198: 数学与应用数学 | L198: 2025.07 | M198: 取得高中数学教师资格证 | O198: 陆川县初级中学 | P198: 初中数学教师 | Q198: 3 | R198: 专业技术 | S198: 事业编制 | T198: 138.5 | U198: 68.50 | V198: 57.33 | W198: 3
A199: =SUBTOTAL(3,$B$3:B198) -> 196 | B199: 林宇涵 | C199: 女 | D199: 汉族 | E199: 4245251700128 | F199: 2001.12 | G199: 广西陆川 | H199: 本科 | I199: 学士 | J199: 百色学院 | K199: 历史学 | L199: 2025.06 | M199: 取得高中历史教师资格证 | O199: 陆川县初级中学 | P199: 初中历史教师 | Q199: 1 | R199: 专业技术 | S199: 事业编制 | T199: 155.0 | U199: 76.68 | V199: 64.17 | W199: 1
A200: =SUBTOTAL(3,$B$3:B199) -> 197 | B200: 江丽锐 | C200: 女 | D200: 汉族 | E200: 4245251700828 | F200: 1999.01 | G200: 广西陆川 | H200: 本科 | I200: 学士 | J200: 玉林师范学院 | K200: 生物科学 | L200: 2020.06 | M200: 取得高中生物教师资格证 | O200: 陆川县初级中学 | P200: 初中生物教师 | Q200: 1 | R200: 专业技术 | S200: 事业编制 | T200: 152.5 | U200: 81.26 | V200: 66.05 | W200: 1
... 68 more rows
